{"text_format":"1","workbook":"xlsx","n_sheets":19,"sheets":["Informacion preliminar del caso","Municipios","Listas","INFORMACION GENERAL PCD","Red de apoyo PcD","Toma de decisiones PCD","Finanzas PcD","Informacion AVD apoyo de la PcD","Preferencias apoyo de la PcD","Finanzas PA","TD PA","Ajustes Razonables Apoyo de la ","Plan de inversion","Resumen Plan de Inversion","INFORME DE SALIDA 1","INFORME DE SALIDA 2","INFORME DE SALIDA 3","INFORME DE SALIDA 4","Identificacion Profesional psi"],"not_rendered":{"charts":0,"images":4,"macros":1,"external_links":1,"defined_names":54,"comments":0,"pivot_tables":0},"unopened":[],"bounds":{"document_bytes":16777216,"sheet_cells":100000,"rows_first":2000,"rows_last":500,"rows_between":2000,"halvings":0,"cell_chars":16384,"cell_head_chars":4096},"cells_cut":0,"cells_raw":0,"read":"whole","date_system":"1900"}

{"sheet":"Informacion preliminar del caso","index":0,"n_rows":39,"n_cols":10,"rows_kept":39,"cut":false,"hidden":false,"merged":[[0,4,1,4],[2,4,3,4],[6,0,6,3],[0,1,1,2],[2,1,3,2],[4,1,5,2],[0,3,1,3],[2,3,3,3],[0,0,5,0],[38,0,45,0],[22,1,22,3],[23,1,23,3],[24,1,24,3],[25,1,25,3],[26,1,26,3],[27,1,27,3],[28,1,28,3],[37,1,37,3],[29,0,36,0],[17,1,17,3],[18,1,18,3],[19,1,19,3],[20,1,20,3],[21,1,21,3],[7,1,7,3],[8,1,8,3],[9,1,9,3],[10,1,10,3],[16,1,16,3],[11,1,11,3],[12,1,12,3],[13,1,13,3],[14,1,14,3],[15,1,15,3]]}
[null,"INFORMACIÓN PRELIMINAR DEL CASO",null,"Código: 410,08,15-94"]
[]
[null,"PROCESO REPARACIÓN INTEGRAL",null,"Versión:  02"]
[]
[null,"PROCEDIMIENTO TOMA DE DECISIONES CON APOYO",null,"Fecha: 04/12/2019"]
[null,null,null,"Paginas: 1 de 14"]
["1. INFORMACIÓN PRELIMINAR DEL CASO"]
["1.1 Fecha de identificación de la información"]
["1.2 Nombres y Apellidos de la PcD"]
["1.3 Fecha de nacimiento de la Persona con Discapacidad"]
["1.4 Edad ",{"$f":"IF(ISBLANK(B10),\"\",DATEDIF($B$10,TODAY(),\"Y\")&\" años, \"&DATEDIF($B$10,TODAY(),\"YM\")&\" meses, \"&DATEDIF($B$10,TODAY(),\"MD\")&\" días\")","v":""},{"$f":"DATEDIF(#REF!,C12,\"Y\")&\" años, \"&DATEDIF(#REF!,C12,\"YM\")&\" meses, \"&DATEDIF(#REF!,C12,\"MD\")&\" días\"","v":{"$error":"#REF!"}},{"$f":"DATEDIF(A10,D12,\"Y\")&\" años, \"&DATEDIF(A10,D12,\"YM\")&\" meses, \"&DATEDIF(A10,D12,\"MD\")&\" días\"","v":{"$error":"#VALUE!"}}]
["1.5 Lugar actual de residencia"]
["1.6 Departamento"]
["1.7 Municipio"]
["1.8 Dirección y telefonos de contacto 1y 2"]
["1.8.1 Rural"]
["1.8.2 Urbano"]
["1.9 Documento de identidad"]
["1.9.1 Número:"]
["1.10 Categoría de discapacidad"]
["1.10.1 ¿Otra? ¿Cuál?"]
["1.10.2 ¿Por qué requiere la valoración de apoyos?"]
["1.11 Causa de la deficiencia"]
["1.11.1 Edad en la que fue adquirida"]
["1.11.2 Causa de la discapacidad adquirida"]
["1.12 Nivel en la dificultad de desempeño según la certificación de discapacidad "]
["1.13 La persona se encuentra institucionalizada"]
["1.14 La persona se encuentra bajo medida de interdicción"]
["1.15 Nombre del o la curador/a"]
["1.16 ¿Cuáles personas generan un apoyo importante en la cotidianidad de la PcD? (Citados a la entrevista):","Personas de apoyo cotidiano","Relación con la PcD","Teléfono"]
[]
[]
[]
[]
[]
[]
[]
["1.17 ¿Cómo se establece la comunicación con la persona con discapacidad?"]
["1.18 Verificación de personas citadas a la aplicación","Personas de apoyo cotidiano","Relación con la PcD","Tipo de apoyo que genera a la PcD ","Frecuencia con la que realiza el apoyo ","Tiempo que dedica al Apoyo (Horas Semanales)","Convive con la PcD","Tiempo de convivencia con la PcD (años)","Asiste","Motivo de no asistencia"]

{"sheet":"Municipios","index":1,"n_rows":126,"n_cols":34,"rows_kept":126,"cut":false,"hidden":true,"merged":[]}
["Departamentos","ANTIOQUIA","ATLANTICO","BOGOTA","BOLIVAR","BOYACA","CALDAS","CAQUETA","CAUCA","CESAR","CORDOBA","CUNDINAMARCA","CHOCO","HUILA","LA_GUAJIRA","MAGDALENA","META","NARIÑO","N._DE_SANTANDER","QUINDIO","RISARALDA","SANTANDER","SUCRE","TOLIMA","VALLE_DEL_CAUCA","ARAUCA","CASANARE","PUTUMAYO","SAN_ANDRES","AMAZONAS","GUAINIA","GUAVIARE","VAUPES","VICHADA"]
["ANTIOQUIA","MEDELLIN","BARRANQUILLA","BOGOTA, D.C.","CARTAGENA","TUNJA","MANIZALES","FLORENCIA","POPAYAN","VALLEDUPAR","MONTERIA","AGUA DE DIOS","VALLEDUPAR","NEIVA","RIOHACHA","SANTA MARTA","VILLAVICENCIO","PASTO","CUCUTA","ARMENIA","PEREIRA","BUCARAMANGA","SINCELEJO","IBAGUE","CALI","ARAUCA","YOPAL","MOCOA","SAN ANDRES","LETICIA","INIRIDA","SAN JOSE DEL GUAVIARE","MITU","PUERTO CARREÑO"]
["ATLANTICO","ABEJORRAL","BARANOA",null,"ACHI","ALMEIDA","AGUADAS","ALBANIA","ALMAGUER","AGUACHICA","AYAPEL","ALBAN","AGUACHICA","ACEVEDO","ALBANIA","ALGARROBO","ACACIAS","ALBAN","ABREGO","BUENAVISTA","APIA","AGUADA","BUENAVISTA","ALPUJARRA","ALCALA","ARAUQUITA","AGUAZUL","COLON","PROVIDENCIA","EL ENCANTO","BARRANCO MINAS","CALAMAR","CARURU","LA PRIMAVERA"]
["BOGOTA","ABRIAQUI","CAMPO DE LA CRUZ",null,"ALTOS DEL ROSARIO","AQUITANIA","ANSERMA","BELEN DE LOS ANDAQUIES","ARGELIA","AGUSTIN CODAZZI","BUENAVISTA","ANAPOIMA","AGUSTIN CODAZZI","AGRADO","BARRANCAS","ARACATACA","BARRANCA DE UPIA","ALDANA","ARBOLEDAS","CALARCA","BALBOA","ALBANIA","CAIMITO","ALVARADO","ANDALUCIA","CRAVO NORTE","CHAMEZA","ORITO",null,"LA CHORRERA","MAPIRIPANA","EL RETORNO","PACOA","SANTA ROSALIA"]
["BOLIVAR","ALEJANDRIA","CANDELARIA",null,"ARENAL","ARCABUCO","ARANZAZU","CARTAGENA DEL CHAIRA","BALBOA","ASTREA","CANALETE","ANOLAIMA","ASTREA","AIPE","DIBULLA","ARIGUANI","CABUYARO","ANCUYA","BOCHALEMA","CIRCASIA","BELEN DE UMBRIA","ARATOCA","COLOSO","AMBALEMA","ANSERMANUEVO","FORTUL","HATO COROZAL","PUERTO ASIS",null,"LA PEDRERA","SAN FELIPE","MIRAFLORES","TARAIRA","CUMARIBO"]
["BOYACA","AMAGA","GALAPA",null,"ARJONA","BELEN","BELALCAZAR","CURILLO","BOLIVAR","BECERRIL","CERETE","ARBELAEZ","BECERRIL","ALGECIRAS","DISTRACCION","CERRO SAN ANTONIO","CASTILLA LA NUEVA","ARBOLEDA","BUCARASICA","CORDOBA","DOSQUEBRADAS","BARBOSA","COROZAL","ANZOATEGUI","ARGELIA","PUERTO RONDON","LA SALINA","PUERTO CAICEDO",null,"LA VICTORIA","PUERTO COLOMBIA",null,"PAPUNAUA"]
["CALDAS","AMALFI","JUAN DE ACOSTA",null,"ARROYOHONDO","BERBEO","CHINCHINA","EL DONCELLO","BUENOS AIRES","BOSCONIA","CHIMA","BELTRAN","BOSCONIA","ALTAMIRA","EL MOLINO","CHIBOLO","CUBARRAL","BARBACOAS","CACOTA","FILANDIA","GUATICA","BARICHARA","COVEÑAS","ARMERO","BOLIVAR","SARAVENA","MANI","PUERTO GUZMAN",null,"MIRITI - PARANA","LA GUADALUPE",null,"YAVARATE"]
["CAQUETA","ANDES","LURUACO",null,"BARRANCO DE LOBA","BETEITIVA","FILADELFIA","EL PAUJIL","CAJIBIO","CHIMICHAGUA","CHINU","BITUIMA","CHIMICHAGUA","BARAYA","FONSECA","CIENAGA","CUMARAL","BELEN","CACHIRA","GENOVA","LA CELIA","BARRANCABERMEJA","CHALAN","ATACO","BUENAVENTURA","TAME","MONTERREY","LEGUIZAMO",null,"PUERTO ALEGRIA","CACAHUAL"]
["CAUCA","ANGELOPOLIS","MALAMBO",null,"CALAMAR","BOAVITA","LA DORADA","LA MONTAÑITA","CALDONO","CHIRIGUANA","CIENAGA DE ORO","BOJACA","CHIRIGUANA","CAMPOALEGRE","HATONUEVO","CONCORDIA","EL CALVARIO","BUESACO","CHINACOTA","LA TEBAIDA","LA VIRGINIA","BETULIA","EL ROBLE","CAJAMARCA","GUADALAJARA DE BUGA",null,"NUNCHIA","SIBUNDOY",null,"PUERTO ARICA","PANA PANA"]
["CESAR","ANGOSTURA","MANATI",null,"CANTAGALLO","BOYACA","LA MERCED","MILAN","CALOTO","CURUMANI","COTORRA","CABRERA","CURUMANI","COLOMBIA","LA JAGUA DEL PILAR","EL BANCO","EL CASTILLO","COLON","CHITAGA","MONTENEGRO","MARSELLA","BOLIVAR","GALERAS","CARMEN DE APICALA","BUGALAGRANDE",null,"OROCUE","SAN FRANCISCO",null,"PUERTO NARIÑO","MORICHAL"]
["CORDOBA","ANORI","PALMAR DE VARELA",null,"CICUCO","BRICEÑO","MANZANARES","MORELIA","CORINTO","EL COPEY","LA APARTADA","CACHIPAY","EL COPEY","ELIAS","MAICAO","EL PIÑON","EL DORADO","CONSACA","CONVENCION","PIJAO","MISTRATO","CABRERA","GUARANDA","CASABIANCA","CAICEDONIA",null,"PAZ DE ARIPORO","SAN MIGUEL",null,"PUERTO SANTANDER"]
["CUNDINAMARCA","SANTAFE DE ANTIOQUIA","PIOJO",null,"CORDOBA","BUENAVISTA","MARMATO","PUERTO RICO","EL TAMBO","EL PASO","LORICA","CAJICA","EL PASO","GARZON","MANAURE","EL RETEN","FUENTE DE ORO","CONTADERO","CUCUTILLA","QUIMBAYA","PUEBLO RICO","CALIFORNIA","LA UNION","CHAPARRAL","CALIMA",null,"PORE","SANTIAGO",null,"TARAPACA"]
["CHOCO","ANZA","POLONUEVO",null,"CLEMENCIA","BUSBANZA","MARQUETALIA","SAN JOSE DEL FRAGUA","FLORENCIA","GAMARRA","LOS CORDOBAS","CAPARRAPI","GAMARRA","GIGANTE","SAN JUAN DEL CESAR","FUNDACION","GRANADA","CORDOBA","DURANIA","SALENTO","QUINCHIA","CAPITANEJO","LOS PALMITOS","COELLO","CANDELARIA",null,"RECETOR","VALLE DEL GUAMUEZ"]
["HUILA","APARTADO","PONEDERA",null,"EL CARMEN DE BOLIVAR","CALDAS","MARULANDA","SAN VICENTE DEL CAGUAN","GUACHENE","GONZALEZ","MOMIL","CAQUEZA","GONZALEZ","GUADALUPE","URIBIA","GUAMAL","GUAMAL","CUASPUD","EL CARMEN",null,"SANTA ROSA DE CABAL","CARCASI","MAJAGUAL","COYAIMA","CARTAGO",null,"SABANALARGA","VILLAGARZON"]
["LA_GUAJIRA","ARBOLETES","PUERTO COLOMBIA",null,"EL GUAMO","CAMPOHERMOSO","NEIRA","SOLANO","GUAPI","LA GLORIA","MONTELIBANO","CARMEN DE CARUPA","LA GLORIA","HOBO","URUMITA","NUEVA GRANADA","MAPIRIPAN","CUMBAL","EL TARRA",null,"SANTUARIO","CEPITA","MORROA","CUNDAY","DAGUA",null,"SACAMA"]
["MAGDALENA","ARGELIA","REPELON",null,"EL PEÑON","CERINZA","NORCASIA","SOLITA","INZA","LA JAGUA DE IBIRICO","MOÑITOS","CHAGUANI","LA JAGUA DE IBIRICO","IQUIRA","VILLANUEVA","PEDRAZA","MESETAS","CUMBITARA","EL ZULIA",null,null,"CERRITO","OVEJAS","DOLORES","EL AGUILA",null,"SAN LUIS DE PALENQUE"]
["META","ARMENIA","SABANAGRANDE",null,"HATILLO DE LOBA","CHINAVITA","PACORA","VALPARAISO","JAMBALO","MANAURE","PLANETA RICA","CHIA","MANAURE","ISNOS",null,"PIJIÑO DEL CARMEN","LA MACARENA","CHACHAGsI","GRAMALOTE",null,null,"CHARALA","PALMITO","ESPINAL","EL CAIRO",null,"TAMARA"]
["NARIÑO","BARBOSA","SABANALARGA",null,"MAGANGUE","CHIQUINQUIRA","PALESTINA",null,"LA SIERRA","PAILITAS","PUEBLO NUEVO","CHIPAQUE","PAILITAS","LA ARGENTINA",null,"PIVIJAY","URIBE","EL CHARCO","HACARI",null,null,"CHARTA","SAMPUES","FALAN","EL CERRITO",null,"TAURAMENA"]
["N._DE_SANTANDER","BELMIRA","SANTA LUCIA",null,"MAHATES","CHISCAS","PENSILVANIA",null,"LA VEGA","PELAYA","PUERTO ESCONDIDO","CHOACHI","PELAYA","LA PLATA",null,"PLATO","LEJANIAS","EL PEÑOL","HERRAN",null,null,"CHIMA","SAN BENITO ABAD","FLANDES","EL DOVIO",null,"TRINIDAD"]
["QUINDIO","BELLO","SANTO TOMAS",null,"MARGARITA","CHITA","RIOSUCIO",null,"LOPEZ","PUEBLO BELLO","PUERTO LIBERTADOR","CHOCONTA","PUEBLO BELLO","NATAGA",null,"PUEBLOVIEJO","PUERTO CONCORDIA","EL ROSARIO","LABATECA",null,null,"CHIPATA","SAN JUAN DE BETULIA","FRESNO","FLORIDA",null,"VILLANUEVA"]
["RISARALDA","BETANIA","SOLEDAD",null,"MARIA LA BAJA","CHITARAQUE","RISARALDA",null,"MERCADERES","RIO DE ORO","PURISIMA","COGUA","RIO DE ORO","OPORAPA",null,"REMOLINO","PUERTO GAITAN","EL TABLON DE GOMEZ","LA ESPERANZA",null,null,"CIMITARRA","SAN MARCOS","GUAMO","GINEBRA"]
["SANTANDER","BETULIA","SUAN",null,"MONTECRISTO","CHIVATA","SALAMINA",null,"MIRANDA","LA PAZ","SAHAGUN","COTA","LA PAZ","PAICOL",null,"SABANAS DE SAN ANGEL","PUERTO LOPEZ","EL TAMBO","LA PLAYA",null,null,"CONCEPCION","SAN ONOFRE","HERVEO","GUACARI"]
["SUCRE","CIUDAD BOLIVAR","TUBARA",null,"MOMPOS","CIENEGA","SAMANA",null,"MORALES","SAN ALBERTO","SAN ANDRES SOTAVENTO","CUCUNUBA","SAN ALBERTO","PALERMO",null,"SALAMINA","PUERTO LLERAS","FUNES","LOS PATIOS",null,null,"CONFINES","SAN PEDRO","HONDA","JAMUNDI"]
["TOLIMA","BRICEÑO","USIACURI",null,"NOROSI","COMBITA","SAN JOSE",null,"PADILLA","SAN DIEGO","SAN ANTERO","EL COLEGIO","SAN DIEGO","PALESTINA",null,"SAN SEBASTIAN DE BUENAVISTA","PUERTO RICO","GUACHUCAL","LOURDES",null,null,"CONTRATACION","SAN LUIS DE SINCE","ICONONZO","LA CUMBRE"]
["VALLE_DEL_CAUCA","BURITICA",null,null,"MORALES","COPER","SUPIA",null,"PAEZ","SAN MARTIN","SAN BERNARDO DEL VIENTO","EL PEÑON","SAN MARTIN","PITAL",null,"SAN ZENON","RESTREPO","GUAITARILLA","MUTISCUA",null,null,"COROMORO","SUCRE","LERIDA","LA UNION"]
["ARAUCA","CACERES",null,null,"PINILLOS","CORRALES","VICTORIA",null,"PATIA","TAMALAMEQUE","SAN CARLOS","EL ROSAL","TAMALAMEQUE","PITALITO",null,"SANTA ANA","SAN CARLOS DE GUAROA","GUALMATAN","OCAÑA",null,null,"CURITI","SANTIAGO DE TOLU","LIBANO","LA VICTORIA"]
["CASANARE","CAICEDO",null,null,"REGIDOR","COVARACHIA","VILLAMARIA",null,"PIAMONTE",null,"SAN PELAYO","FACATATIVA",null,"RIVERA",null,"SANTA BARBARA DE PINTO","SAN JUAN DE ARAMA","ILES","PAMPLONA",null,null,"EL CARMEN DE CHUCURI","TOLU VIEJO","MARIQUITA","OBANDO"]
["PUTUMAYO","CALDAS",null,null,"RIO VIEJO","CUBARA","VITERBO",null,"PIENDAMO",null,"TIERRALTA","FOMEQUE",null,"SALADOBLANCO",null,"SITIONUEVO","SAN JUANITO","IMUES","PAMPLONITA",null,null,"EL GUACAMAYO",null,"MELGAR","PALMIRA"]
["SAN_ANDRES","CAMPAMENTO",null,null,"SAN CRISTOBAL","CUCAITA",null,null,"PUERTO TEJADA",null,"VALENCIA","FOSCA",null,"SAN AGUSTIN",null,"TENERIFE","SAN MARTIN","IPIALES","PUERTO SANTANDER",null,null,"EL PEÑON",null,"MURILLO","PRADERA"]
["AMAZONAS","CAÑASGORDAS",null,null,"SAN ESTANISLAO","CUITIVA",null,null,"PURACE",null,null,"FUNZA",null,"SANTA MARIA",null,"ZAPAYAN","VISTAHERMOSA","LA CRUZ","RAGONVALIA",null,null,"EL PLAYON",null,"NATAGAIMA","RESTREPO"]
["GUAINIA","CARACOLI",null,null,"SAN FERNANDO","CHIQUIZA",null,null,"ROSAS",null,null,"FUQUENE",null,"SUAZA",null,"ZONA BANANERA",null,"LA FLORIDA","SALAZAR",null,null,"ENCINO",null,"ORTEGA","RIOFRIO"]
["GUAVIARE","CARAMANTA",null,null,"SAN JACINTO","CHIVOR",null,null,"SAN SEBASTIAN",null,null,"FUSAGASUGA",null,"TARQUI",null,null,null,"LA LLANADA","SAN CALIXTO",null,null,"ENCISO",null,"PALOCABILDO","ROLDANILLO"]
["VAUPES","CAREPA",null,null,"SAN JACINTO DEL CAUCA","DUITAMA",null,null,"SANTANDER DE QUILICHAO",null,null,"GACHALA",null,"TESALIA",null,null,null,"LA TOLA","SAN CAYETANO",null,null,"FLORIAN",null,"PIEDRAS","SAN PEDRO"]
["VICHADA","EL CARMEN DE VIBORAL",null,null,"SAN JUAN NEPOMUCENO","EL COCUY",null,null,"SANTA ROSA",null,null,"GACHANCIPA",null,"TELLO",null,null,null,"LA UNION","SANTIAGO",null,null,"FLORIDABLANCA",null,"PLANADAS","SEVILLA"]
[null,"CAROLINA",null,null,"SAN MARTIN DE LOBA","EL ESPINO",null,null,"SILVIA",null,null,"GACHETA",null,"TERUEL",null,null,null,"LEIVA","SARDINATA",null,null,"GALAN",null,"PRADO","TORO"]
[null,"CAUCASIA",null,null,"SAN PABLO","FIRAVITOBA",null,null,"SOTARA",null,null,"GAMA",null,"TIMANA",null,null,null,"LINARES","SILOS",null,null,"GAMBITA",null,"PURIFICACION","TRUJILLO"]
[null,"CHIGORODO",null,null,"SANTA CATALINA","FLORESTA",null,null,"SUAREZ",null,null,"GIRARDOT",null,"VILLAVIEJA",null,null,null,"LOS ANDES","TEORAMA",null,null,"GIRON",null,"RIOBLANCO","TULUA"]
[null,"CISNEROS",null,null,"SANTA ROSA","GACHANTIVA",null,null,"SUCRE",null,null,"GRANADA",null,"YAGUARA",null,null,null,"MAGsI","TIBU",null,null,"GUACA",null,"RONCESVALLES","ULLOA"]
[null,"COCORNA",null,null,"SANTA ROSA DEL SUR","GAMEZA",null,null,"TIMBIO",null,null,"GUACHETA",null,null,null,null,null,"MALLAMA","TOLEDO",null,null,"GUADALUPE",null,"ROVIRA","VERSALLES"]
[null,"CONCEPCION",null,null,"SIMITI","GARAGOA",null,null,"TIMBIQUI",null,null,"GUADUAS",null,null,null,null,null,"MOSQUERA","VILLA CARO",null,null,"GUAPOTA",null,"SALDAÑA","VIJES"]
[null,"CONCORDIA",null,null,"SOPLAVIENTO","GUACAMAYAS",null,null,"TORIBIO",null,null,"GUASCA",null,null,null,null,null,"NARIÑO","VILLA DEL ROSARIO",null,null,"GUAVATA",null,"SAN ANTONIO","YOTOCO"]
[null,"COPACABANA",null,null,"TALAIGUA NUEVO","GUATEQUE",null,null,"TOTORO",null,null,"GUATAQUI",null,null,null,null,null,"OLAYA HERRERA",null,null,null,"GsEPSA",null,"SAN LUIS","YUMBO"]
[null,"DABEIBA",null,null,"TIQUISIO","GUAYATA",null,null,"VILLA RICA",null,null,"GUATAVITA",null,null,null,null,null,"OSPINA",null,null,null,"HATO",null,"SANTA ISABEL","ZARZAL"]
[null,"DON MATIAS",null,null,"TURBACO","GsICAN",null,null,null,null,null,"GUAYABAL DE SIQUIMA",null,null,null,null,null,"FRANCISCO PIZARRO",null,null,null,"JESUS MARIA",null,"SUAREZ"]
[null,"EBEJICO",null,null,"TURBANA","IZA",null,null,null,null,null,"GUAYABETAL",null,null,null,null,null,"POLICARPA",null,null,null,"JORDAN",null,"VALLE DE SAN JUAN"]
[null,"EL BAGRE",null,null,"VILLANUEVA","JENESANO",null,null,null,null,null,"GUTIERREZ",null,null,null,null,null,"POTOSI",null,null,null,"LA BELLEZA",null,"VENADILLO"]
[null,"ENTRERRIOS",null,null,"ZAMBRANO","JERICO",null,null,null,null,null,"JERUSALEN",null,null,null,null,null,"PROVIDENCIA",null,null,null,"LANDAZURI",null,"VILLAHERMOSA"]
[null,"ENVIGADO",null,null,null,"LABRANZAGRANDE",null,null,null,null,null,"JUNIN",null,null,null,null,null,"PUERRES",null,null,null,"LA PAZ",null,"VILLARRICA"]
[null,"FREDONIA",null,null,null,"LA CAPILLA",null,null,null,null,null,"LA CALERA",null,null,null,null,null,"PUPIALES",null,null,null,"LEBRIJA"]
[null,"FRONTINO",null,null,null,"LA VICTORIA",null,null,null,null,null,"LA MESA",null,null,null,null,null,"RICAURTE",null,null,null,"LOS SANTOS"]
[null,"GIRALDO",null,null,null,"LA UVITA",null,null,null,null,null,"LA PALMA",null,null,null,null,null,"ROBERTO PAYAN",null,null,null,"MACARAVITA"]
[null,"GIRARDOTA",null,null,null,"VILLA DE LEYVA",null,null,null,null,null,"LA PEÑA",null,null,null,null,null,"SAMANIEGO",null,null,null,"MALAGA"]
[null,"GOMEZ PLATA",null,null,null,"MACANAL",null,null,null,null,null,"LA VEGA",null,null,null,null,null,"SANDONA",null,null,null,"MATANZA"]
[null,"GRANADA",null,null,null,"MARIPI",null,null,null,null,null,"LENGUAZAQUE",null,null,null,null,null,"SAN BERNARDO",null,null,null,"MOGOTES"]
[null,"GUADALUPE",null,null,null,"MIRAFLORES",null,null,null,null,null,"MACHETA",null,null,null,null,null,"SAN LORENZO",null,null,null,"MOLAGAVITA"]
[null,"GUARNE",null,null,null,"MONGUA",null,null,null,null,null,"MADRID",null,null,null,null,null,"SAN PABLO",null,null,null,"OCAMONTE"]
[null,"GUATAPE",null,null,null,"MONGUI",null,null,null,null,null,"MANTA",null,null,null,null,null,"SAN PEDRO DE CARTAGO",null,null,null,"OIBA"]
[null,"HELICONIA",null,null,null,"MONIQUIRA",null,null,null,null,null,"MEDINA",null,null,null,null,null,"SANTA BARBARA",null,null,null,"ONZAGA"]
[null,"HISPANIA",null,null,null,"MOTAVITA",null,null,null,null,null,"MOSQUERA",null,null,null,null,null,"SANTACRUZ",null,null,null,"PALMAR"]
[null,"ITAGUI",null,null,null,"MUZO",null,null,null,null,null,"NARIÑO",null,null,null,null,null,"SAPUYES",null,null,null,"PALMAS DEL SOCORRO"]
[null,"ITUANGO",null,null,null,"NOBSA",null,null,null,null,null,"NEMOCON",null,null,null,null,null,"TAMINANGO",null,null,null,"PARAMO"]
[null,"JARDIN",null,null,null,"NUEVO COLON",null,null,null,null,null,"NILO",null,null,null,null,null,"TANGUA",null,null,null,"PIEDECUESTA"]
[null,"JERICO",null,null,null,"OICATA",null,null,null,null,null,"NIMAIMA",null,null,null,null,null,"SAN ANDRES DE TUMACO",null,null,null,"PINCHOTE"]
[null,"LA CEJA",null,null,null,"OTANCHE",null,null,null,null,null,"NOCAIMA",null,null,null,null,null,"TUQUERRES",null,null,null,"PUENTE NACIONAL"]
[null,"LA ESTRELLA",null,null,null,"PACHAVITA",null,null,null,null,null,"VENECIA",null,null,null,null,null,"YACUANQUER",null,null,null,"PUERTO PARRA"]
[null,"LA PINTADA",null,null,null,"PAEZ",null,null,null,null,null,"PACHO",null,null,null,null,null,null,null,null,null,"PUERTO WILCHES"]
[null,"LA UNION",null,null,null,"PAIPA",null,null,null,null,null,"PAIME",null,null,null,null,null,null,null,null,null,"RIONEGRO"]
[null,"LIBORINA",null,null,null,"PAJARITO",null,null,null,null,null,"PANDI",null,null,null,null,null,null,null,null,null,"SABANA DE TORRES"]
[null,"MACEO",null,null,null,"PANQUEBA",null,null,null,null,null,"PARATEBUENO",null,null,null,null,null,null,null,null,null,"SAN ANDRES"]
[null,"MARINILLA",null,null,null,"PAUNA",null,null,null,null,null,"PASCA",null,null,null,null,null,null,null,null,null,"SAN BENITO"]
[null,"MONTEBELLO",null,null,null,"PAYA",null,null,null,null,null,"PUERTO SALGAR",null,null,null,null,null,null,null,null,null,"SAN GIL"]
[null,"MURINDO",null,null,null,"PAZ DE RIO",null,null,null,null,null,"PULI",null,null,null,null,null,null,null,null,null,"SAN JOAQUIN"]
[null,"MUTATA",null,null,null,"PESCA",null,null,null,null,null,"QUEBRADANEGRA",null,null,null,null,null,null,null,null,null,"SAN JOSE DE MIRANDA"]
[null,"NARIÑO",null,null,null,"PISBA",null,null,null,null,null,"QUETAME",null,null,null,null,null,null,null,null,null,"SAN MIGUEL"]
[null,"NECOCLI",null,null,null,"PUERTO BOYACA",null,null,null,null,null,"QUIPILE",null,null,null,null,null,null,null,null,null,"SAN VICENTE DE CHUCURI"]
[null,"NECHI",null,null,null,"QUIPAMA",null,null,null,null,null,"APULO",null,null,null,null,null,null,null,null,null,"SANTA BARBARA"]
[null,"OLAYA",null,null,null,"RAMIRIQUI",null,null,null,null,null,"RICAURTE",null,null,null,null,null,null,null,null,null,"SANTA HELENA DEL OPON"]
[null,"PEÐOL",null,null,null,"RAQUIRA",null,null,null,null,null,"SAN ANTONIO DEL TEQUENDAMA",null,null,null,null,null,null,null,null,null,"SIMACOTA"]
[null,"PEQUE",null,null,null,"RONDON",null,null,null,null,null,"SAN BERNARDO",null,null,null,null,null,null,null,null,null,"SOCORRO"]
[null,"PUEBLORRICO",null,null,null,"SABOYA",null,null,null,null,null,"SAN CAYETANO",null,null,null,null,null,null,null,null,null,"SUAITA"]
[null,"PUERTO BERRIO",null,null,null,"SACHICA",null,null,null,null,null,"SAN FRANCISCO",null,null,null,null,null,null,null,null,null,"SUCRE"]
[null,"PUERTO NARE",null,null,null,"SAMACA",null,null,null,null,null,"SAN JUAN DE RIO SECO",null,null,null,null,null,null,null,null,null,"SURATA"]
[null,"PUERTO TRIUNFO",null,null,null,"SAN EDUARDO",null,null,null,null,null,"SASAIMA",null,null,null,null,null,null,null,null,null,"TONA"]
[null,"REMEDIOS",null,null,null,"SAN JOSE DE PARE",null,null,null,null,null,"SESQUILE",null,null,null,null,null,null,null,null,null,"VALLE DE SAN JOSE"]
[null,"RETIRO",null,null,null,"SAN LUIS DE GACENO",null,null,null,null,null,"SIBATE",null,null,null,null,null,null,null,null,null,"VELEZ"]
[null,"RIONEGRO",null,null,null,"SAN MATEO",null,null,null,null,null,"SILVANIA",null,null,null,null,null,null,null,null,null,"VETAS"]
[null,"SABANALARGA",null,null,null,"SAN MIGUEL DE SEMA",null,null,null,null,null,"SIMIJACA",null,null,null,null,null,null,null,null,null,"VILLANUEVA"]
[null,"SABANETA",null,null,null,"SAN PABLO DE BORBUR",null,null,null,null,null,"SOACHA",null,null,null,null,null,null,null,null,null,"ZAPATOCA"]
[null,"SALGAR",null,null,null,"SANTANA",null,null,null,null,null,"SOPO"]
[null,"SAN ANDRES DE CUERQUIA",null,null,null,"SANTA MARIA",null,null,null,null,null,"SUBACHOQUE"]
[null,"SAN CARLOS",null,null,null,"SANTA ROSA DE VITERBO",null,null,null,null,null,"SUESCA"]
[null,"SAN FRANCISCO",null,null,null,"SANTA SOFIA",null,null,null,null,null,"SUPATA"]
[null,"SAN JERONIMO",null,null,null,"SATIVANORTE",null,null,null,null,null,"SUSA"]
[null,"SAN JOSE DE LA MONTAÑA",null,null,null,"SATIVASUR",null,null,null,null,null,"SUTATAUSA"]
[null,"SAN JUAN DE URABA",null,null,null,"SIACHOQUE",null,null,null,null,null,"TABIO"]
[null,"SAN LUIS",null,null,null,"SOATA",null,null,null,null,null,"TAUSA"]
[null,"SAN PEDRO",null,null,null,"SOCOTA",null,null,null,null,null,"TENA"]
[null,"SAN PEDRO DE URABA",null,null,null,"SOCHA",null,null,null,null,null,"TENJO"]
[null,"SAN RAFAEL",null,null,null,"SOGAMOSO",null,null,null,null,null,"TIBACUY"]
[null,"SAN ROQUE",null,null,null,"SOMONDOCO",null,null,null,null,null,"TIBIRITA"]
[null,"SAN VICENTE",null,null,null,"SORA",null,null,null,null,null,"TOCAIMA"]
[null,"SANTA BARBARA",null,null,null,"SOTAQUIRA",null,null,null,null,null,"TOCANCIPA"]
[null,"SANTA ROSA DE OSOS",null,null,null,"SORACA",null,null,null,null,null,"TOPAIPI"]
[null,"SANTO DOMINGO",null,null,null,"SUSACON",null,null,null,null,null,"UBALA"]
[null,"EL SANTUARIO",null,null,null,"SUTAMARCHAN",null,null,null,null,null,"UBAQUE"]
[null,"SEGOVIA",null,null,null,"SUTATENZA",null,null,null,null,null,"VILLA DE SAN DIEGO DE UBATE"]
[null,"SONSON",null,null,null,"TASCO",null,null,null,null,null,"UNE"]
[null,"SOPETRAN",null,null,null,"TENZA",null,null,null,null,null,"UTICA"]
[null,"TAMESIS",null,null,null,"TIBANA",null,null,null,null,null,"VERGARA"]
[null,"TARAZA",null,null,null,"TIBASOSA",null,null,null,null,null,"VIANI"]
[null,"TARSO",null,null,null,"TINJACA",null,null,null,null,null,"VILLAGOMEZ"]
[null,"TITIRIBI",null,null,null,"TIPACOQUE",null,null,null,null,null,"VILLAPINZON"]
[null,"TOLEDO",null,null,null,"TOCA",null,null,null,null,null,"VILLETA"]
[null,"TURBO",null,null,null,"TOGsI",null,null,null,null,null,"VIOTA"]
[null,"URAMITA",null,null,null,"TOPAGA",null,null,null,null,null,"YACOPI"]
[null,"URRAO",null,null,null,"TOTA",null,null,null,null,null,"ZIPACON"]
[null,"VALDIVIA",null,null,null,"TUNUNGUA",null,null,null,null,null,"ZIPAQUIRA"]
[null,"VALPARAISO",null,null,null,"TURMEQUE"]
[null,"VEGACHI",null,null,null,"TUTA"]
[null,"VENECIA",null,null,null,"TUTAZA"]
[null,"VIGIA DEL FUERTE",null,null,null,"UMBITA"]
[null,"YALI",null,null,null,"VENTAQUEMADA"]
[null,"YARUMAL",null,null,null,"VIRACACHA"]
[null,"YOLOMBO",null,null,null,"ZETAQUIRA"]
[null,"YONDO"]
[null,"ZARAGOZA"]

{"sheet":"Listas","index":2,"n_rows":125,"n_cols":14,"rows_kept":125,"cut":false,"hidden":true,"merged":[]}
["* Lista desplegable 1.8 adquirida",null,null,null,null,null,null,null,"Nombres asiste",null,null,"Diario"]
["Enfermedad General",null,"SI",null,null,null,null,null,"Actividades de aseo diario ","Actividades de aseo diario ",null,"Semanal"]
["Enfermedad laboral",null,"NO",null,null,null,null,null,"Actividades de Cuidado personal","Actividades de Cuidado personal",null,"Mensual"]
["Accidente de transito",null,null,null,null,null,null,null,"Actividades de Arreglo Personal","Actividades de Arreglo Personal",null,"Semestral"]
["Accidente en el hogar",null,"Asiste",null,null,null,null,null,"Actividades de Alimentacion ","Actividades de Alimentacion ",null,"Anual"]
["Accidente en el centro educativo",null,"No asiste",null,null,null,null,null,"Actividades de bienestar fisico","Actividades de bienestar fisico"]
["Accidente de trabajo",null,null,null,null,null,null,null,"Actividades de apoyo para la adquisicion de bienes o elementos","Actividades de apoyo para la adquisicion de bienes o elementos"]
["Accidente deportivo",null,"Categoria de discapacidad",null,null,null,null,null,"Actividades de Socializacion ","Actividades de Socializacion "]
["Desastre natural",null,"Mental-psicosocial",null,null,null,null,null,"Actividades de bienestar Mental","Actividades de bienestar Mental",null,null,null,"SI"]
["Intoxicacion",null,"Intelectual",null,null,null,null,null,"Actividades educativas, laborales y/o Financieras","Actividades educativas, laborales y/o Financieras",null,null,null,"NO"]
["Envejecimiento",null,"Otra",null,null,null,null,null,"Varias",null,null,null,null,"NO SABE"]
["Consumo de sustancias psicoactivas"]
["Lesion auto inflingida",null,"De nacimiento"]
["Conflicto armado",null,"Adquirida"]
["Violencia intrafamiliar"]
["No se identifica",null,"Fisica"]
[null,null,"Multiple"]
["* Lista desplegable parentesco "]
["Hijo o hija",null,"Estado autonomo para la toma de decisiones"]
["Padre o madre",null,"Estado asistido para la toma de decisiones"]
["Hermano o hermana",null,"Estado de toma de decisiones facilitadas"]
["Primo o prima",null,"Estado de Codecision"]
["Tio o tia "]
["Sobrino o sobrina",null,"1. Minimo Vital."]
["Nieto o nieta",null,"2. Formacion tecnica o profesional para las victimas o sus hijos."]
["Abuelo o Abuela",null,"3. Creacion o fortalecimiento de empresas productivas o activos productivos."]
["Esposo o Esposa",null,"4. Adquisicion o mejoramiento de vivienda nueva o usada."]
["Otro familiar",null,"5. Adquisicion de inmuebles rurales."]
["Otro no familiar"]
[null,1,{"$f":"'Informacion preliminar del caso'!B31","v":0},{"$f":"IF(C30=0,ROW($C$45)-29,ROW(C30)-29)","v":16},{"$f":"IFERROR(VLOOKUP(SMALL($D$30:$D$44,B30),$B$30:$C$44,2,FALSE),\"X\")","v":"Otro"}]
["Lista desplegable tipo de documento",2,{"$f":"'Informacion preliminar del caso'!B32","v":0},{"$f":"IF(C31=0,ROW($C$45)-29,ROW(C31)-29)","v":16},"X"]
["Cedula de ciudadania",3,{"$f":"'Informacion preliminar del caso'!B33","v":0},16,"X"]
["Registro civil (NUIP)",4,{"$f":"'Informacion preliminar del caso'!B34","v":0},16,"X"]
["Tarjeta de identidad",5,{"$f":"'Informacion preliminar del caso'!B35","v":0},16,"X"]
["No tiene",6,{"$f":"'Informacion preliminar del caso'!B36","v":0},16,"X"]
["Otro",7,{"$f":"'Informacion preliminar del caso'!B37","v":0},16,"X"]
[null,8,{"$f":"'Red de apoyo PcD'!E10","v":0},16,"X"]
["* Lista desplegable 2.9 ",9,{"$f":"'Red de apoyo PcD'!E12","v":0},16,"X"]
["Ninguna",10,{"$f":"'Red de apoyo PcD'!E14","v":0},16,"X"]
["Pre-escolar",11,{"$f":"'Red de apoyo PcD'!E16","v":0},16,"X"]
["Basica primaria",12,{"$f":"'Red de apoyo PcD'!E18","v":0},16,{"$f":"IFERROR(VLOOKUP(SMALL($D$30:$D$44,B41),$B$30:$C$44,2,FALSE),\"X\")","v":"X"}]
["Bachillerato (Secundaria/ Media)",13,{"$f":"'Red de apoyo PcD'!E20","v":0},16,"X"]
["Tecnica",14,{"$f":"'Red de apoyo PcD'!E22","v":0},16,"X"]
["Tecnologica",15,"Otro",15,"X"]
["Universitaria"]
["Posgrado"]
[null,null,"Casa propia"]
["* Lista desplegable 2.10 ",null,"Casa familiar"]
["Trabajando",null,"Arriendo"]
["Buscando trabajo (empleo, actividad que le genera ingresos)",null,"Hogar de paso"]
["Estudiando"]
["Realizando oficios del hogar"]
["Rentista o pensionado"]
["Ha estado con incapacidad laboral"]
["No ha hecho nada"]
[]
[]
["* Lista desplegable 7. 1 y 7.2"]
["Habla"]
["Escribe"]
["Usa gestos "]
["Emite Sonidos"]
["Realiza movimientos con el cuerpo"]
["Realiza señas"]
["Imita gestos"]
["Realiza gestos de agrado y desagrado"]
["Pregunta varias veces lo mismo"]
["Se toma tiempo "]
["Otro"]
["No sabe"]
[]
["Utilizar computador para expresar lo que quiere o desea"]
["Utilizar el telefono para expresar lo que quiere o desea"]
["Utilizar la tableta para expresar lo que quiere o desea"]
["Utilizar dibujos o imagenes para expresar lo que desea"]
["Apoyo de alguien para comunicar sus ideas (que alguien le interprete su lenguaje)"]
["Recibir informacion escrita"]
["Hablarle con palabras sencillas"]
["Explicarle paso por paso"]
["Presentarle imagenes, fotos, dibujos, hacer gestos"]
["No tener contacto visual con las otras personas"]
["Hacer traslados con el apoyo de otra persona"]
["Recibir atencion domiciliaria"]
[]
["Computador para realizar operaciones"]
["Calculadora para realizar operaciones"]
["Tableta para realizar operaciones"]
["Apoyo de alguien (que alguien le interprete su lenguaje) "]
[]
["Muy importante"]
["Importante"]
["Relevante"]
["Cotidiano"]
["Indiferente"]
[]
["Sin argumento "]
["Confuso"]
["Superficial"]
["Amplio"]
["Profundo"]
[]
["Computador para realizar operaciones"]
["Calculadora para realizar operaciones"]
["Tableta para realizar operaciones"]
["Apoyo de alguien (que alguien le interprete su lenguaje) "]
[]
[]
["Muy insatisfecho"]
["Insatisfecho"]
["Indiferente"]
["Satisfecho"]
["Muy satisfecho"]
[]
[]
["Ultimos 6 meses"]
["Entre 6 meses y 1 anio"]
["Entre 1 anio y 2 anios"]
["Entre 2 y 3 Anios"]
["Mas de 3 anios"]
[]
["Por iniciativa propia"]
["Por decision familiar"]
["Por solicitud de la VcD"]
["Por ser el unico que podia"]
["Porque tiene un contrato"]

{"sheet":"INFORMACION GENERAL PCD","index":3,"n_rows":37,"n_cols":4,"rows_kept":37,"cut":false,"hidden":false,"merged":[[0,0,5,0],[0,3,1,3],[2,3,3,3],[0,1,1,2],[2,1,3,2],[4,1,5,2],[13,0,14,0],[15,0,16,0],[9,0,10,0],[9,1,10,1],[11,1,12,1],[32,0,32,1],[30,2,30,3],[31,2,31,3],[6,0,6,3],[17,0,28,0],[13,1,14,1],[15,1,16,1],[17,1,18,1],[19,1,20,1],[21,1,22,1],[23,1,24,1],[25,1,26,1],[8,0,8,3],[11,0,12,0],[7,1,7,3],[27,1,28,1]]}
[null,"INFORMACIÓN GENERAL, FORMACIÓN Y  FORMACIÓN OCUPACIONAL",null,"Código: 410,08,15-94"]
[]
[null,"PROCESO REPARACIÓN INTEGRAL",null,"Versión:  02"]
[]
[null,"PROCEDIMIENTO TOMA DE DECISIONES CON APOYO",null,"Fecha: 04/12/2019"]
[null,null,null,"Paginas: 2 de 14"]
["2. INFORMACIÓN GENERAL, FORMACIÓN Y  FORMACIÓN OCUPACIONAL"]
["Fecha de identificación de la información"]
["Información general"]
["2.1 ¿Cuál es su nombre completo?",null,"¿Se emite respuesta?","¿Coincide con información previa?"]
[]
["2.1 ¿Cuál es su fecha de nacimiento?",null,"¿Se emite respuesta?","¿Coincide con información previa?"]
[]
["2.3 ¿Cuantos años tiene?",{"$f":"'Informacion preliminar del caso'!B11","v":""},"¿Se emite respuesta?","¿Coincide con información previa?"]
[]
["2.4 ¿Dónde vive?",null,"¿Se emite respuesta?","¿Coincide con información previa?"]
[]
["2.5 ¿Con quien vive?",null,"¿Se emite respuesta?","¿Coincide con información previa?"]
[]
[null,null,"¿Se emite respuesta?","¿Coincide con información previa?"]
[]
[null,null,"¿Se emite respuesta?","¿Coincide con información previa?"]
[]
[null,null,"¿Se emite respuesta?","¿Coincide con información previa?"]
[]
[null,null,"¿Se emite respuesta?","¿Coincide con información previa?"]
[]
[null,null,"¿Se emite respuesta?","¿Coincide con información previa?"]
[]
["2.6 ¿Sabe la fecha de hoy?",null,"¿Cuál?"]
["2.7 ¿Conoce la Unidad para las Víctimas?"]
["2.8 ¿Sabe para qué estamos hoy aquí?"]
["Formación y ocupacional",null,"¿Responde la PcD?","Si no, ¿quién responde?"]
["2.9  Escolaridad"]
["2.10  Ocupación  en el último año"]
[]
["¿Se logró establecer comunicación directa con la VcD y/o las respuestas que emite son coherentes y consistentes?",null,"Estado de autonomía de la VcD"]

{"sheet":"Red de apoyo PcD","index":4,"n_rows":39,"n_cols":9,"rows_kept":39,"cut":false,"hidden":false,"merged":[[2,3,3,4],[4,3,5,4],[0,5,1,5],[2,5,3,5],[0,0,5,2],[0,3,1,4],[16,0,16,3],[17,0,17,3],[18,0,18,3],[19,0,19,3],[6,0,6,5],[7,0,7,3],[8,0,8,3],[9,0,9,3],[10,0,10,3],[11,0,11,3],[12,0,12,3],[13,0,13,3],[14,0,14,3],[15,0,15,3],[24,0,24,3],[25,0,25,3],[20,0,20,3],[21,0,21,3],[22,0,22,3],[23,0,23,3],[26,0,26,3],[37,0,37,3],[38,0,38,3],[29,0,29,3],[30,0,30,3],[31,0,31,3],[27,0,27,3],[28,0,28,3],[32,0,32,3],[33,0,33,3],[34,0,34,3],[35,0,35,3],[36,0,36,3]]}
[null,null,null,"IDENTIFICACIÓN DE LA RED DE APOYO",null,"Código: 410,08,15-94"]
[]
[null,null,null,"PROCESO REPARACIÓN INTEGRAL",null,"Versión:  02"]
[]
[null,null,null,"PROCEDIMIENTO TOMA DE DECISIONES CON APOYO",null,"Fecha: 04/12/2019"]
[null,null,null,null,null,"Paginas: 3 de 14"]
["3. IDENTIFICACIÓN DE LA RED DE APOYO"]
[null,null,null,null,"RESPUESTA","OBSERVACIONES"]
["3.1 ¿Hay personas que usted quisiera que estuvieran hoy aquí y no están o no pudieron venir?"]
["3.1.1 Dígame el nombre:"]
["3.1.2 ¿Qué relación tienen con usted?"]
["3.1.3 Dígame el nombre:"]
["3.1.4 ¿Qué relación tienen con usted?"]
["3.1.5 Dígame el nombre:"]
["3.1.6 ¿Qué relación tienen con usted?"]
["3.1.7 Dígame el nombre:"]
["3.1.8 ¿Qué relación tienen con usted?"]
["3.1.9 Dígame el nombre:"]
["3.1.10 ¿Qué relación tienen con usted?"]
["3.1.11 Dígame el nombre:"]
["3.1.12 ¿Qué relación tienen con usted?"]
["3.1.13 Dígame el nombre:"]
["3.1.14 ¿Qué relación tienen con usted?"]
["PERSONAS QUE SON IMPORTANTES PARA USTED",null,null,null,"RESPUESTA","OBSERVACIONES"]
["3.2 ¿A quién ubica en el primer círculo o en primer lugar?"]
["3.3 ¿A quién ubica en el segundo círculo o en segundo lugar?"]
["3.4 ¿A quién ubica en el tercer círculo o en tercer lugar?"]
["3.5 Directiva Anticipada – Persona de quien NO se desea recibir apoyo.\n¿De quién NO le gustaría recibir apoyo en caso de tomar una decisión?"]
["ACTIVIDADES QUE SON IMPORTANTES PARA USTED",null,null,null,"RESPUESTA","¿Quién conoce sus preferencias en estas actividades?"]
["3.6 Actividades de aseo diario (Bañarse, ducharse, lavarse las manos y los pies, la cara y el pelo, y secarse con una toalla.)",null,null,null,null,null,"3.2.1",null,{"$f":"IF(E30=\"Muy importante\",5,IF(E30=\"Importante\",4,IF(E30=\"Relevante\",3,IF(E30=\"Cotidiano\",2,IF(E30=\"Indiferente\",1,)))))","v":0}]
["3.7 Actividades de cuidado personal (cuidado de la piel, dientes, pelo, uñas de las manos y los pies.)",null,null,null,null,null,"3.2.2",null,{"$f":"IF(E31=\"Muy importante\",5,IF(E31=\"Importante\",4,IF(E31=\"Relevante\",3,IF(E31=\"Cotidiano\",2,IF(E31=\"Indiferente\",1,)))))","v":0}]
["3.8 Actividades de arreglo personal (Ponerse o quitarse la ropa y el calzado y elegir una vestimenta apropiada.)",null,null,null,null,null,"3.2.3",null,0]
["3.9 Actividades de alimentación (elección y preparación de los alimentos, suministrar la comida)",null,null,null,null,null,"3.2.4",null,0]
["3.10 Actividades de bienestar físico (control de la dieta y la forma física; mantener la salud, acompañar al médico)",null,null,null,null,null,"3.2.5",null,0]
["3.11 Actividades de apoyo para la adquisición de bienes o elementos (organizar, hacer compras y almacenar los elementos, bienes o servicios para satisfacer sus necesidades personales.)",null,null,null,null,null,"3.2.6",null,0]
["3.12 Actividades de socialización (Acompañar a espacios o eventos donde se relacione con otras personas o facilitar el establecimiento de relaciones personales) ",null,null,null,null,null,"3.2.8",null,0]
["3.13 Actividades de bienestar mental (realizar o acompañar los juegos, deportes, actividades de arte y cultura, manualidades, aficiones y socialización.)",null,null,null,null,null,"3.2.9",null,0]
["3.14 Actividades sentimentales de salud sexual y reproductiva (facilitar el desarrollo de relaciones sentimentales, de pareja o sexuales, tomar decisiones sobre su salud sexual y reproductiva)",null,null,null,null,null,"3.2.10",null,0]
["3.15 Actividades educativas, laborales y/o Financieras (realizar estudios, firmar contratos, realizar pagos, presentar declaraciones)",null,null,null,null,null,"3.2.11",null,0]

{"sheet":"Toma de decisiones PCD","index":5,"n_rows":40,"n_cols":9,"rows_kept":40,"cut":false,"hidden":false,"merged":[[0,0,5,2],[0,3,1,4],[0,5,1,5],[2,3,3,4],[2,5,3,5],[4,3,5,4],[13,0,13,3],[20,0,20,3],[21,0,21,3],[15,0,15,3],[6,0,6,5],[7,0,7,3],[8,0,8,3],[9,0,9,3],[12,0,12,3],[11,0,11,3],[10,0,10,3],[16,0,16,3],[17,0,17,3],[19,0,19,3],[14,0,14,3],[18,0,18,3],[22,0,22,3],[26,0,26,3],[23,0,23,3],[27,0,27,3],[31,0,31,3],[30,0,30,3],[24,0,24,3],[25,0,25,3],[29,0,29,3],[35,0,35,3],[37,0,37,3],[39,0,39,5],[32,0,32,3],[28,0,28,3],[38,0,38,3],[33,0,33,3],[34,0,34,3],[36,0,36,3]]}
[null,null,null,"TOMA DE DECISIONES Y APOYOS PARA TOMAR DECISIONES",null,"Código: 410,08,15-94"]
[]
[null,null,null,"PROCESO REPARACIÓN INTEGRAL",null,"Versión:  02"]
[]
[null,null,null,"PROCEDIMIENTO TOMA DE DECISIONES CON APOYO",null,"Fecha: 04/12/2019"]
[null,null,null,null,null,"Paginas: 4 de 14"]
["4. TOMA DE DECISIONES Y APOYOS PARA TOMAR DECISIONES"]
["DECISIONES QUE HA TOMADO LA PcD",null,null,null,"RESPUESTA","OBSERVACIONES"]
["4.1 ¿Usted elige la comida que le gusta y la ropa que quiere usar?"]
["4.1.1 ¿Quién toma esas decisiones por usted?"]
["4.1.2 ¿Hace cuanto tiempo lo hace?",null,null,null,null,null,null,null,{"$f":"IF(E11=\"Últimos 6 meses\",1,IF(E11=\"Entre 6 meses y 1 año\",1.5,IF(E11=\"Entre 1 año y 2 años\",2,IF(E11=\"Entre 2 y 3 Años\",3,IF(E11=\"Mas de 3 años\",5,)))))","v":0}]
["4.1.3 ¿Se siente a gusto con esas decisiones?",null,null,null,null,null,null,null,{"$f":"IF(E12=\"MUY INSATISFECHO\",1,IF(E12=\"INSATISFECHO\",2,IF(E12=\"INDIFERENTE\",3,IF(E12=\"SATISFECHO\",4,IF(E12=\"MUY SATISFECHO \",5,)))))","v":0}]
["4.2 ¿Usted escoge sus amigos, las personas con las que quiere conversar o las personas que quiere que lo acompañen a eventos y actividades?"]
["4.2.1 ¿Quién toma esas decisiones por usted?"]
["4.2.2 ¿Hace cuanto tiempo lo hace?",null,null,null,null,null,null,null,{"$f":"IF(E15=\"Últimos 6 meses\",1,IF(E15=\"Entre 6 meses y 1 año\",1.5,IF(E15=\"Entre 1 año y 2 años\",2,IF(E15=\"Entre 2 y 3 Años\",3,IF(E15=\"Mas de 3 años\",5,)))))","v":0}]
["4.2.3 ¿Se siente a gusto con esas decisiones?",null,null,null,null,null,null,null,{"$f":"IF(E16=\"MUY INSATISFECHO\",1,IF(E16=\"INSATISFECHO\",2,IF(E16=\"INDIFERENTE\",3,IF(E16=\"SATISFECHO\",4,IF(E16=\"MUY SATISFECHO \",5,)))))","v":0}]
["4.3 ¿Usted elige con quién y donde vivir?"]
["4.3.1 ¿Quién toma esas decisiones por usted? "]
["4.3.2 ¿Hace cuanto tiempo lo hace?",null,null,null,null,null,null,null,{"$f":"IF(E19=\"Últimos 6 meses\",1,IF(E19=\"Entre 6 meses y 1 año\",1.5,IF(E19=\"Entre 1 año y 2 años\",2,IF(E19=\"Entre 2 y 3 Años\",3,IF(E19=\"Mas de 3 años\",5,)))))","v":0}]
["4.3.3 ¿Se siente a gusto con esas decisiones?",null,null,null,null,null,null,null,{"$f":"IF(E20=\"MUY INSATISFECHO\",1,IF(E20=\"INSATISFECHO\",2,IF(E20=\"INDIFERENTE\",3,IF(E20=\"SATISFECHO\",4,IF(E20=\"MUY SATISFECHO \",5,)))))","v":0}]
["4.4 ¿Usted elige los momentos de acudir al medico e iniciar tratamientos de salud?"]
["4.4.1 ¿Quién toma esas decisiones por usted? "]
["4.4.2 ¿Hace cuanto tiempo lo hace?",null,null,null,null,null,null,null,{"$f":"IF(E23=\"Últimos 6 meses\",1,IF(E23=\"Entre 6 meses y 1 año\",1.5,IF(E23=\"Entre 1 año y 2 años\",2,IF(E23=\"Entre 2 y 3 Años\",3,IF(E23=\"Mas de 3 años\",5,)))))","v":0}]
["4.4.3 ¿Se siente a gusto con esas decisiones?",null,null,null,null,null,null,null,{"$f":"IF(E24=\"MUY INSATISFECHO\",1,IF(E24=\"INSATISFECHO\",2,IF(E24=\"INDIFERENTE\",3,IF(E24=\"SATISFECHO\",4,IF(E24=\"MUY SATISFECHO \",5,)))))","v":0}]
["4.5 ¿Usted decide lo que quiere hacer en su tiempo libre, por ejemplo: si quiere oír música, hacer cosas con amigos, ir a cine o hacer un deporte?"]
["4.5.1 ¿Quién toma esas decisiones por usted? "]
["4.5.2 ¿Hace cuanto tiempo lo hace?",null,null,null,null,null,null,null,{"$f":"IF(E27=\"Últimos 6 meses\",1,IF(E27=\"Entre 6 meses y 1 año\",1.5,IF(E27=\"Entre 1 año y 2 años\",2,IF(E27=\"Entre 2 y 3 Años\",3,IF(E27=\"Mas de 3 años\",5,)))))","v":0}]
["4.5.3 ¿Se siente a gusto con esas decisiones?",null,null,null,null,null,null,null,{"$f":"IF(E28=\"MUY INSATISFECHO\",1,IF(E28=\"INSATISFECHO\",2,IF(E28=\"INDIFERENTE\",3,IF(E28=\"SATISFECHO\",4,IF(E28=\"MUY SATISFECHO \",5,)))))","v":0}]
["4.6 ¿Usted mismo decidió estudiar?"]
["4.6.1 ¿Quién toma esas decisiones por usted? "]
["4.6.2 ¿Hace cuanto tiempo lo hace?",null,null,null,null,null,null,null,{"$f":"IF(E31=\"Últimos 6 meses\",1,IF(E31=\"Entre 6 meses y 1 año\",1.5,IF(E31=\"Entre 1 año y 2 años\",2,IF(E31=\"Entre 2 y 3 Años\",3,IF(E31=\"Mas de 3 años\",5,)))))","v":0}]
["4.6.3 ¿Se siente a gusto con esas decisiones?",null,null,null,null,null,null,null,{"$f":"IF(E32=\"MUY INSATISFECHO\",1,IF(E32=\"INSATISFECHO\",2,IF(E32=\"INDIFERENTE\",3,IF(E32=\"SATISFECHO\",4,IF(E32=\"MUY SATISFECHO \",5,)))))","v":0}]
[" 4.7 ¿En los trabajos que ha realizado antes recibió dinero o alguna remuneración?"]
["4.8 ¿Alguna vez ha tenido que firmar un contrato o un documento importante?"]
["4.8.1 ¿Usted decidió firmar?"]
["4.8.2 ¿Quién toma esas decisiones por usted? "]
["4.8.3 ¿Hace cuanto tiempo lo hace?",null,null,null,null,null,null,null,{"$f":"IF(E37=\"Últimos 6 meses\",1,IF(E37=\"Entre 6 meses y 1 año\",1.5,IF(E37=\"Entre 1 año y 2 años\",2,IF(E37=\"Entre 2 y 3 Años\",3,IF(E37=\"Mas de 3 años\",5,)))))","v":0}]
["4.8.4 ¿Se siente a gusto con esas decisiones?",null,null,null,null,null,null,null,{"$f":"IF(E38=\"MUY INSATISFECHO\",1,IF(E38=\"INSATISFECHO\",2,IF(E38=\"INDIFERENTE\",3,IF(E38=\"SATISFECHO\",4,IF(E38=\"MUY SATISFECHO \",5,)))))","v":0}]
["4.9 ¿Está conforme con que otras personas le apoyen en la toma de decisiones?"]
["* Utilizar circulos para ubicar las personas de apoyo"]

{"sheet":"Finanzas PcD","index":6,"n_rows":53,"n_cols":8,"rows_kept":53,"cut":false,"hidden":false,"merged":[[0,0,5,2],[0,3,1,4],[0,5,1,5],[2,3,3,4],[2,5,3,5],[4,3,5,4],[52,0,52,3],[26,0,26,3],[31,0,31,3],[36,0,36,3],[41,0,41,3],[45,0,45,3],[30,0,30,3],[35,0,35,3],[40,0,40,3],[44,0,44,3],[48,0,48,3],[34,0,34,3],[37,0,37,3],[33,0,33,3],[29,0,29,3],[32,0,32,3],[6,0,6,5],[7,0,7,3],[15,0,15,3],[13,0,13,3],[23,0,23,3],[19,0,19,3],[17,0,17,3],[14,0,14,3],[16,0,16,3],[21,0,21,3],[8,0,8,3],[9,0,9,3],[10,0,10,3],[11,0,11,3],[12,0,12,3],[18,0,18,3],[22,0,22,3],[20,0,20,3],[51,0,51,3],[47,0,47,3],[49,0,49,3],[38,0,38,3],[39,0,39,3],[42,0,42,3],[43,0,43,3],[46,0,46,3],[28,0,28,3],[24,0,24,3],[27,0,27,3],[25,0,25,3],[50,0,50,3]]}
[null,null,null,"FINANZAS Y APOYOS EN DECISIONES FINANCIERAS",null,"Código: 410,08,15-94"]
[]
[null,null,null,"PROCESO REPARACIÓN INTEGRAL",null,"Versión:  02"]
[]
[null,null,null,"PROCEDIMIENTO TOMA DE DECISIONES CON APOYO",null,"Fecha: 04/12/2019"]
[null,null,null,null,null,"Paginas: 5 de 14"]
["5. FINANZAS Y APOYOS EN DECISIONES FINANCIERAS"]
[null,null,null,null,"RESPUESTA","OBSERVACIONES"]
["5.1 ¿Conoce el dinero y su uso?"]
["5.1.1 ¿Alguien lo apoya en el uso del dinero?"]
["5.1.2 ¿Quién lo apoya en esta actividad?"]
["5.1.3 ¿Hace cuanto tiempo lo apoya?",null,null,null,null,null,null,{"$f":"IF(E12=\"Últimos 6 meses\",1,IF(E12=\"Entre 6 meses y 1 año\",1.5,IF(E12=\"Entre 1 año y 2 años\",2,IF(E12=\"Entre 2 y 3 Años\",3,IF(E12=\"Mas de 3 años\",5,)))))","v":0}]
["5.1.4 ¿Se siente a gusto con ese apoyo?",null,null,null,null,null,null,{"$f":"IF(E13=\"MUY INSATISFECHO\",1,IF(E13=\"INSATISFECHO\",2,IF(E13=\"INDIFERENTE\",3,IF(E13=\"SATISFECHO\",5,IF(E13=\"MUY SATISFECHO \",5,)))))","v":0}]
["5.2 ¿Necesita algun tipo de apoyo para hacer las cuentas?"]
["5.2.1 ¿Qué tipo de apoyo utiliza en esta actividad?"]
["5.2.2 ¿Quién lo apoya en esta actividad?"]
["5.2.3 ¿Hace cuanto tiempo lo apoya?",null,null,null,null,null,null,{"$f":"IF(E17=\"Últimos 6 meses\",1,IF(E17=\"Entre 6 meses y 1 año\",1.5,IF(E17=\"Entre 1 año y 2 años\",2,IF(E17=\"Entre 2 y 3 Años\",3,IF(E17=\"Mas de 3 años\",5,)))))","v":0}]
["5.2.4 ¿Se siente a gusto con ese apoyo?",null,null,null,null,null,null,{"$f":"IF(E18=\"MUY INSATISFECHO\",1,IF(E18=\"INSATISFECHO\",2,IF(E18=\"INDIFERENTE\",3,IF(E18=\"SATISFECHO\",5,IF(E18=\"MUY SATISFECHO \",5,)))))","v":0}]
["5.3 ¿Tiene una lista de las cosas que quiere comprar?"]
["5.3.1 ¿Alguien lo apoya en la definicion de la lista?"]
["5.3.2 ¿Quién lo apoya en esta actividad?"]
["5.3.3 ¿Hace cuanto tiempo lo apoya?",null,null,null,null,null,null,{"$f":"IF(E22=\"Últimos 6 meses\",1,IF(E22=\"Entre 6 meses y 1 año\",1.5,IF(E22=\"Entre 1 año y 2 años\",2,IF(E22=\"Entre 2 y 3 Años\",3,IF(E22=\"Mas de 3 años\",5,)))))","v":0}]
["5.3.4 ¿Se siente a gusto con ese apoyo?",null,null,null,null,null,null,{"$f":"IF(E23=\"MUY INSATISFECHO\",1,IF(E23=\"INSATISFECHO\",2,IF(E23=\"INDIFERENTE\",3,IF(E23=\"SATISFECHO\",5,IF(E23=\"MUY SATISFECHO \",5,)))))","v":0}]
["5.4 ¿Necesita de otras personas para revisar documentos y recibos bancarios? "]
["5.4.1 ¿Quién lo apoya en esta actividad?"]
["5.4.2 ¿Hace cuanto tiempo lo apoya?",null,null,null,null,null,null,{"$f":"IF(E26=\"Últimos 6 meses\",1,IF(E26=\"Entre 6 meses y 1 año\",1.5,IF(E26=\"Entre 1 año y 2 años\",2,IF(E26=\"Entre 2 y 3 Años\",3,IF(E26=\"Mas de 3 años\",5,)))))","v":0}]
["5.4.3 ¿Se siente a gusto con ese apoyo?",null,null,null,null,null,null,{"$f":"IF(E27=\"MUY INSATISFECHO\",1,IF(E27=\"INSATISFECHO\",2,IF(E27=\"INDIFERENTE\",3,IF(E27=\"SATISFECHO\",5,IF(E27=\"MUY SATISFECHO \",5,)))))","v":0}]
["5.5 ¿Va al banco y hace pagos?"]
["5.5.1 ¿Necesita que alguien lo apoye en esta actividad?"]
["5.5.2 ¿Quién lo apoya en esta actividad?"]
["5.5.3 ¿Hace cuanto tiempo lo apoya?",null,null,null,null,null,null,{"$f":"IF(E31=\"Últimos 6 meses\",1,IF(E31=\"Entre 6 meses y 1 año\",1.5,IF(E31=\"Entre 1 año y 2 años\",2,IF(E31=\"Entre 2 y 3 Años\",3,IF(E31=\"Mas de 3 años\",5,)))))","v":0}]
["5.5.4 ¿Se siente a gusto con ese apoyo?",null,null,null,null,null,null,{"$f":"IF(E32=\"MUY INSATISFECHO\",1,IF(E32=\"INSATISFECHO\",2,IF(E32=\"INDIFERENTE\",3,IF(E32=\"SATISFECHO\",5,IF(E32=\"MUY SATISFECHO \",5,)))))","v":0}]
["5.6 ¿Tiene cuenta de ahorros? "]
["5.6.1 ¿Alguien lo apoya en su uso y manejo?"]
["5.6.2 ¿Quién lo apoya en esta actividad?"]
["5.6.3 ¿Hace cuanto tiempo lo apoya?",null,null,null,null,null,null,{"$f":"IF(E36=\"Últimos 6 meses\",1,IF(E36=\"Entre 6 meses y 1 año\",1.5,IF(E36=\"Entre 1 año y 2 años\",2,IF(E36=\"Entre 2 y 3 Años\",3,IF(E36=\"Mas de 3 años\",5,)))))","v":0}]
["5.6.4 ¿Se siente a gusto con ese apoyo?",null,null,null,null,null,null,{"$f":"IF(E37=\"MUY INSATISFECHO\",1,IF(E37=\"INSATISFECHO\",2,IF(E37=\"INDIFERENTE\",3,IF(E37=\"SATISFECHO\",5,IF(E37=\"MUY SATISFECHO \",5,)))))","v":0}]
["5.7 ¿Utiliza cajeros automáticos?  "]
["5.7.1 ¿Necesita que alguien lo apoye en esta actividad?"]
["5.7.2 ¿Quién lo apoya en esta actividad?"]
["5.7.3 ¿Hace cuanto tiempo lo apoya?",null,null,null,null,null,null,{"$f":"IF(E41=\"Últimos 6 meses\",1,IF(E41=\"Entre 6 meses y 1 año\",1.5,IF(E41=\"Entre 1 año y 2 años\",2,IF(E41=\"Entre 2 y 3 Años\",3,IF(E41=\"Mas de 3 años\",5,)))))","v":0}]
["5.7.4 ¿Se siente a gusto con ese apoyo?",null,null,null,null,null,null,{"$f":"IF(E42=\"MUY INSATISFECHO\",1,IF(E42=\"INSATISFECHO\",2,IF(E42=\"INDIFERENTE\",3,IF(E42=\"SATISFECHO\",5,IF(E42=\"MUY SATISFECHO \",5,)))))","v":0}]
["5.8 ¿Requiere que otra persona le acompañe a hacer compras o pagos cotidianos?"]
["5.8.1 ¿Quién lo apoya en esta actividad?"]
["5.8.2 ¿Hace cuanto tiempo lo apoya?",null,null,null,null,null,null,{"$f":"IF(E45=\"Últimos 6 meses\",1,IF(E45=\"Entre 6 meses y 1 año\",1.5,IF(E45=\"Entre 1 año y 2 años\",2,IF(E45=\"Entre 2 y 3 Años\",3,IF(E45=\"Mas de 3 años\",5,)))))","v":0}]
["5.8.3 ¿Se siente a gusto con ese apoyo?",null,null,null,null,null,null,{"$f":"IF(E56=\"MUY INSATISFECHO\",1,IF(E56=\"INSATISFECHO\",2,IF(E56=\"INDIFERENTE\",3,IF(E56=\"SATISFECHO\",5,IF(E56=\"MUY SATISFECHO \",5,)))))","v":0}]
["5.9 Prefiere el acompañamiento de otras personas para tomar decisiones financieras teniendo en cuenta sus deseos (por ejemplo: gastar su dinero, manejar la pensión y subsidio, vender sus  bienes, usar la tarjeta de crédito)"]
["5.9.1 ¿Quién lo apoya en esta actividad?"]
["5.9.2 ¿Hace cuanto tiempo lo apoya?",null,null,null,null,null,null,{"$f":"IF(E59=\"Últimos 6 meses\",1,IF(E59=\"Entre 6 meses y 1 año\",1.5,IF(E59=\"Entre 1 año y 2 años\",2,IF(E59=\"Entre 2 y 3 Años\",3,IF(E59=\"Mas de 3 años\",5,)))))","v":0}]
["5.9.3 ¿Se siente a gusto con ese apoyo?",null,null,null,null,null,null,{"$f":"IF(E61=\"MUY INSATISFECHO\",1,IF(E61=\"INSATISFECHO\",2,IF(E61=\"INDIFERENTE\",3,IF(E61=\"SATISFECHO\",5,IF(E61=\"MUY SATISFECHO \",5,)))))","v":0}]
["5.10 ¿Alguien le ayudo a tomar la decisión en que gastar dinero que recibió la última vez?"]
["5.10.1 ¿Quién lo apoyó en esta actividad?"]
["5.10.2 ¿Se siente a gusto con ese apoyo?",null,null,null,null,null,null,{"$f":"IF(E63=\"MUY INSATISFECHO\",1,IF(E63=\"INSATISFECHO\",2,IF(E63=\"INDIFERENTE\",3,IF(E63=\"SATISFECHO\",5,IF(E63=\"MUY SATISFECHO \",5,)))))","v":0}]

{"sheet":"Informacion AVD apoyo de la PcD","index":7,"n_rows":53,"n_cols":9,"rows_kept":53,"cut":false,"hidden":false,"merged":[[0,0,5,0],[0,4,1,5],[2,4,3,5],[4,4,4,5],[5,4,5,5],[0,1,1,3],[2,1,3,3],[4,1,5,3],[6,0,6,5],[34,0,39,0],[34,1,39,1],[16,0,21,0],[16,1,21,1],[7,2,9,2],[10,0,15,0],[7,3,9,3],[10,1,15,1],[7,4,9,4],[7,0,9,0],[7,1,9,1],[7,5,9,5],[40,0,45,0],[40,1,45,1],[46,1,51,1],[46,0,51,0],[22,0,27,0],[22,1,27,1],[28,0,33,0],[28,1,33,1]]}
[null,"INFORMACIÓN APOYOS EN LAS ACTIVIDADES DE LA VIDA DIARIA",null,null,"Código: 410,08,15-94"]
[]
[null,"PROCESO REPARACIÓN INTEGRAL",null,null,"Versión: 02"]
[]
[null,"PROCEDIMIENTO TOMA DE DECISIONES CON APOYO",null,null,"Fecha: 04/12/2019"]
[null,null,null,null,"Paginas:  6 de 14"]
["6. INFORMACIÓN APOYOS EN LAS  ACTIVIDADES DE LA VIDA DIARIA "]
["Actividad","¿Lo hace solo?","¿Quién es la persona de apoyo en la actividad?","¿Hace cuánto tiempo realiza este apoyo?","Frecuencia de apoyo ","Horas"]
[]
[]
["6.1 Bañarse, ducharse, lavarse las\nmanos y los pies, la cara y el pelo, y secarse con una toalla.",null,null,null,null,null,null,{"$f":"IF(D11=\"Últimos 6 meses\",1,IF(D11=\"Entre 6 meses y 1 año\",1.5,IF(D11=\"Entre 1 año y 2 años\",2,IF(D11=\"Entre 2 y 3 Años\",3,IF(D11=\"Mas de 3 años\",5,)))))","v":0},{"$f":"IF(E11=\"Anual\",1,IF(E11=\"Semestral\",1.5,IF(E11=\"Mensual\",3,IF(E11=\"Semanal\",4,IF(E11=\"Diario\",5,)))))","v":0}]
[null,null,null,null,null,null,null,{"$f":"IF(D12=\"Últimos 6 meses\",1,IF(D12=\"Entre 6 meses y 1 año\",1.5,IF(D12=\"Entre 1 año y 2 años\",2,IF(D12=\"Entre 2 y 3 Años\",3,IF(D12=\"Mas de 3 años\",5,)))))","v":0},{"$f":"IF(E12=\"Anual\",1,IF(E12=\"Semestral\",1.5,IF(E12=\"Mensual\",3,IF(E12=\"Semanal\",4,IF(E12=\"Diario\",5,)))))","v":0}]
[null,null,null,null,null,null,null,0,0]
[null,null,null,null,null,null,null,0,0]
[null,null,null,null,null,null,null,0,0]
[null,null,null,null,null,null,null,0,0]
["6.2 Cuidado de la piel, dientes, pelo, uñas de las manos y los pies.",null,null,null,null,null,null,0,0]
[null,null,null,null,null,null,null,0,0]
[null,null,null,null,null,null,null,0,0]
[null,null,null,null,null,null,null,0,0]
[null,null,null,null,null,null,null,0,0]
[null,null,null,null,null,null,null,0,0]
["6.3 Ponerse o quitarse la ropa y el calzado y elegir una vestimenta apropiada.",null,null,null,null,null,null,0,0]
[null,null,null,null,null,null,null,0,0]
[null,null,null,null,null,null,null,0,0]
[null,null,null,null,null,null,null,0,0]
[null,null,null,null,null,null,null,0,0]
[null,null,null,null,null,null,null,0,0]
["6.4 Alimentación. Preparacion e ingesta de los alimentos",null,null,null,null,null,null,0,0]
[null,null,null,null,null,null,null,0,0]
[null,null,null,null,null,null,null,0,0]
[null,null,null,null,null,null,null,0,0]
[null,null,null,null,null,null,null,0,0]
[null,null,null,null,null,null,null,0,0]
["6.5 Asegurar bienestar físico; control de la dieta y la forma física; mantener la propia salud.",null,null,null,null,null,null,0,0]
[null,null,null,null,null,null,null,0,0]
[null,null,null,null,null,null,null,0,0]
[null,null,null,null,null,null,null,0,0]
[null,null,null,null,null,null,null,0,0]
[null,null,null,null,null,null,null,0,0]
["6.6 Organizar y hacer compras para almacenar los elementos  para satisfacer las necesidades diarias.",null,null,null,null,null,null,0,0]
[null,null,null,null,null,null,null,0,0]
[null,null,null,null,null,null,null,0,0]
[null,null,null,null,null,null,null,0,0]
[null,null,null,null,null,null,null,0,0]
[null,null,null,null,null,null,null,0,0]
["6.7 Juegos, deportes, arte y cultura, manualidades, aficiones y socialización.",null,null,null,null,null,null,0,0]
[null,null,null,null,null,null,null,0,0]
[null,null,null,null,null,null,null,0,0]
[null,null,null,null,null,null,null,0,0]
[null,null,null,null,null,null,null,0,0]
[null,null,null,null,null,null,null,0,0]
["* También habilitado cuando la PcD contesta las preguntas anteriores"]

{"sheet":"Preferencias apoyo de la PcD","index":8,"n_rows":71,"n_cols":7,"rows_kept":71,"cut":false,"hidden":true,"merged":[[0,4,1,4],[2,4,3,4],[0,0,5,0],[0,1,1,3],[2,1,3,3],[4,1,5,3],[8,0,14,0],[15,0,21,0],[22,0,28,0],[29,0,35,0],[6,0,6,4],[36,0,42,0],[43,0,49,0],[50,0,56,0],[57,0,63,0],[64,0,70,0]]}
[null,"PREFERENCIAS DE LA PCD",null,null,"Código:"]
[]
[null,"REPARACIÓN INTEGRAL",null,null,"Versión:"]
[]
[null,"TOMA DE DECISIONES CON APOYO EN LA ENTREGA DE LA INDEMNIZACIÓN ADMINISTRATIVA",null,null,"Fecha: (DD/MM/AA)"]
[null,null,null,null,"Paginas"]
["7. PREFERENCIAS DE LA PCD"]
[null,"Persona que responde","Respuesta","¿En qué basa su respuesta? Mencione un evento específico","Tipo de Respuesta"]
["7.1 Mencione brevemente lo que la PcD le ha comunicado que le gusta ",null,null,null,null,null,{"$f":"IF(E9=\"Sin argumento \",1,IF(E9=\"Confuso\",2,IF(E9=\"Superficial\",3,IF(E9=\"Amplio\",4,IF(E9=\"Profundo\",5,)))))","v":0}]
[null,null,null,null,null,null,0]
[null,null,null,null,null,null,0]
[null,null,null,null,null,null,0]
[null,null,null,null,null,null,0]
[null,null,null,null,null,null,0]
[null,null,null,null,null,null,0]
["7.2 Mencione brevemente lo que la PcD le ha comunicado que le molesta",null,null,null,null,null,0]
[null,null,null,null,null,null,0]
[null,null,null,null,null,null,0]
[null,null,null,null,null,null,0]
[null,null,null,null,null,null,0]
[null,null,null,null,null,null,0]
[null,null,null,null,null,null,{"$f":"IF(E22=\"Sin argumento \",1,IF(E22=\"Confuso\",2,IF(E22=\"Superficial\",3,IF(E22=\"Amplio\",4,IF(E22=\"Profundo\",5,)))))","v":0}]
["7.3 ¿Cómo hace para saber lo que la persona quiere hacer cuando tiene que tomar decisiones importantes?",null,null,null,null,null,{"$f":"IF(E23=\"Sin argumento \",1,IF(E23=\"Confuso\",2,IF(E23=\"Superficial\",3,IF(E23=\"Amplio\",4,IF(E23=\"Profundo\",5,)))))","v":0}]
[null,null,null,null,null,null,0]
[null,null,null,null,null,null,0]
[null,null,null,null,null,null,0]
[null,null,null,null,null,null,0]
[null,null,null,null,null,null,0]
[null,null,null,null,null,null,0]
["7.4 ¿Podría describir lo que la PcD le ha manifestado acerca de lo que desea en Su vida personal (actividades diarias, relaciones con otras personas, hobbies, gustos)?",null,null,null,null,null,0]
[null,null,null,null,null,null,0]
[null,null,null,null,null,null,0]
[null,null,null,null,null,null,0]
[null,null,null,null,null,null,0]
[null,null,null,null,null,null,0]
[null,null,null,null,null,null,0]
["7.5 ¿Podría describir lo que la PcD le ha manifestado acerca de lo que desea en  Su formación (educativa, capacitación para el trabajo)?",null,null,null,null,null,0]
[null,null,null,null,null,null,0]
[null,null,null,null,null,null,0]
[null,null,null,null,null,null,0]
[null,null,null,null,null,null,0]
[null,null,null,null,null,null,0]
[null,null,null,null,null,null,0]
["7.6 ¿Podría describir lo que la PcD le ha manifestado acerca de lo que desea en Manejo de recursos económicos?",null,null,null,null,null,0]
[null,null,null,null,null,null,0]
[null,null,null,null,null,null,0]
[null,null,null,null,null,null,0]
[null,null,null,null,null,null,0]
[null,null,null,null,null,null,0]
[null,null,null,null,null,null,0]
["7.7 ¿Podría describir lo que la PcD le ha manifestado acerca de lo que desea en Otras metas, planes o deseos próximos o futuros?",null,null,null,null,null,0]
[null,null,null,null,null,null,0]
[null,null,null,null,null,null,0]
[null,null,null,null,null,null,0]
[null,null,null,null,null,null,0]
[null,null,null,null,null,null,0]
[null,null,null,null,null,null,0]
["7.8 ¿Podría describir otras metas o acciones que la PcD le ha manifestado?",null,null,null,null,null,0]
[null,null,null,null,null,null,0]
[null,null,null,null,null,null,0]
[null,null,null,null,null,null,0]
[null,null,null,null,null,null,0]
[null,null,null,null,null,null,0]
[null,null,null,null,null,null,0]
["7.9 ¿Cómo podrían otras personas comunicarse con la PcD para interpretar o conocer sus deseos, su voluntad y sus decisiones?",null,null,null,null,null,0]
[null,null,null,null,null,null,0]
[null,null,null,null,null,null,0]
[null,null,null,null,null,null,0]
[null,null,null,null,null,null,0]
[null,null,null,null,null,null,0]
[null,null,null,null,null,null,0]

{"sheet":"Finanzas PA","index":9,"n_rows":193,"n_cols":12,"rows_kept":193,"cut":false,"hidden":true,"merged":[[0,0,5,2],[0,3,1,4],[0,5,1,5],[2,3,3,4],[2,5,3,5],[4,3,5,4],[38,0,45,0],[38,1,45,1],[38,2,45,2],[53,2,59,2],[67,2,73,2],[74,2,80,2],[46,0,52,0],[46,1,52,1],[46,2,52,2],[53,0,59,0],[60,1,66,1],[60,2,66,2],[60,0,66,0],[67,0,73,0],[53,1,59,1],[67,1,73,1],[74,0,80,0],[116,2,122,2],[109,1,115,1],[116,1,122,1],[81,2,87,2],[88,2,94,2],[95,2,101,2],[88,1,94,1],[95,1,101,1],[102,1,108,1],[102,2,108,2],[109,2,115,2],[81,1,87,1],[6,0,6,7],[7,0,14,0],[7,1,14,1],[7,2,14,2],[31,2,37,2],[31,1,37,1],[31,0,37,0],[15,0,22,0],[15,1,22,1],[15,2,22,2],[23,0,30,0],[23,1,30,1],[23,2,30,2],[81,0,87,0],[88,0,94,0],[74,1,80,1],[95,0,101,0],[102,0,108,0],[109,0,115,0],[116,0,122,0],[123,1,129,1],[165,2,171,2],[179,1,185,1],[179,2,185,2],[123,2,129,2],[123,0,129,0],[144,1,150,1],[144,2,150,2],[151,1,157,1],[151,2,157,2],[130,1,136,1],[130,2,136,2],[137,1,143,1],[137,2,143,2],[186,1,192,1],[186,2,192,2],[172,1,178,1],[172,2,178,2],[130,0,136,0],[137,0,143,0],[144,0,150,0],[151,0,157,0],[158,0,164,0],[179,0,185,0],[186,0,192,0],[165,0,171,0],[172,0,178,0],[158,1,164,1],[158,2,164,2],[165,1,171,1]]}
[null,null,null,"FINANZAS Y APOYOS DECISIONES FINANCIERAS",null,"Código:"]
[]
[null,null,null,"REPARACIÓN INTEGRAL",null,"Versión:"]
[]
[null,null,null,"TOMA DE DECISIONES CON APOYO EN LA ENTREGA DE LA INDEMNIZACIÓN ADMINISTRATIVA",null,"Fecha: (DD/MM/AA)"]
[null,null,null,null,null,"Paginas"]
["8. FINANZAS Y APOYOS DECISIONES FINANCIERAS"]
["8.1",{"$f":"_xlfn.CONCAT(\"¿\",'Informacion preliminar del caso'!B9)","v":"¿"},"conoce el dinero y su uso?","Persona que responde","RESPUESTA","¿En qué basa su respuesta? Mencione un evento específico","Tipo de Respuesta","OBSERVACIONES"]
[null,null,null,null,null,null,null,null,null,null,null,{"$f":"IF(G9=\"Sin argumento \",1,IF(G9=\"Confuso\",2,IF(G9=\"Superficial\",3,IF(G9=\"Amplio\",4,IF(G9=\"Profundo\",5,)))))","v":0}]
[null,null,null,null,null,null,null,null,null,null,null,{"$f":"IF(G10=\"Sin argumento \",1,IF(G10=\"Confuso\",2,IF(G10=\"Superficial\",3,IF(G10=\"Amplio\",4,IF(G10=\"Profundo\",5,)))))","v":0}]
[null,null,null,null,null,null,null,null,null,null,null,0]
[null,null,null,null,null,null,null,null,null,null,null,0]
[null,null,null,null,null,null,null,null,null,null,null,0]
[null,null,null,null,null,null,null,null,null,null,null,0]
[null,null,null,null,null,null,null,null,null,null,null,0]
["8.2","¿Quién apoya en esas decisiones a",{"$f":"_xlfn.CONCAT('Informacion preliminar del caso'!B9,\"?\")","v":"?"},"Persona que responde","¿Quién realiza el apoyo? Mencione un evento específico","¿Por qué realiza esta actividad?","¿Hace cuánto tiempo realiza este apoyo?","OBSERVACIONES"]
[null,null,null,null,null,null,null,null,null,null,{"$f":"IF(F17=\"Porque tiene un contrato\",1,IF(F17=\"Por ser el único que podía\",2,IF(F17=\"Por solicitud de la VcD\",5,IF(F17=\"Por decisión familiar\",3,IF(F17=\"Por iniciativa propia\",4,)))))","v":0},{"$f":"IF(G17=\"Últimos 6 meses\",1,IF(G17=\"Entre 6 meses y 1 año\",1.5,IF(G17=\"Entre 1 año y 2 años\",2,IF(G17=\"Entre 2 y 3 Años\",3,IF(G17=\"Mas de 3 años\",5,)))))","v":0}]
[null,null,null,null,null,null,null,null,null,null,{"$f":"IF(F18=\"Porque tiene un contrato\",1,IF(F18=\"Por ser el único que podía\",2,IF(F18=\"Por solicitud de la VcD\",5,IF(F18=\"Por decisión familiar\",3,IF(F18=\"Por iniciativa propia\",4,)))))","v":0},{"$f":"IF(G18=\"Últimos 6 meses\",1,IF(G18=\"Entre 6 meses y 1 año\",1.5,IF(G18=\"Entre 1 año y 2 años\",2,IF(G18=\"Entre 2 y 3 Años\",3,IF(G18=\"Mas de 3 años\",5,)))))","v":0}]
[null,null,null,null,null,null,null,null,null,null,0,0]
[null,null,null,null,null,null,null,null,null,null,0,0]
[null,null,null,null,null,null,null,null,null,null,0,0]
[null,null,null,null,null,null,null,null,null,null,0,0]
[null,null,null,null,null,null,null,null,null,null,0,0]
["8.3",{"$f":"_xlfn.CONCAT(\"¿\",'Informacion preliminar del caso'!B9)","v":"¿"},"necesita algun tipo de apoyo para hacer las cuentas?","Persona que responde","RESPUESTA","¿En qué basa su respuesta? Mencione un evento específico","Tipo de Respuesta","OBSERVACIONES"]
[null,null,null,null,null,null,null,null,null,null,null,{"$f":"IF(G25=\"Sin argumento \",1,IF(G25=\"Confuso\",2,IF(G25=\"Superficial\",3,IF(G25=\"Amplio\",4,IF(G25=\"Profundo\",5,)))))","v":0}]
[null,null,null,null,null,null,null,null,null,null,null,0]
[null,null,null,null,null,null,null,null,null,null,null,0]
[null,null,null,null,null,null,null,null,null,null,null,0]
[null,null,null,null,null,null,null,null,null,null,null,0]
[null,null,null,null,null,null,null,null,null,null,null,0]
[null,null,null,null,null,null,null,null,null,null,null,0]
["8.4",{"$f":"_xlfn.CONCAT(\"¿\",'Informacion preliminar del caso'!B9)","v":"¿"},"qué tipo de apoyo utiliza en esta actividad?",null,null,null,null,null,null,null,null,0]
[null,null,null,null,null,null,null,null,null,null,null,0]
[null,null,null,null,null,null,null,null,null,null,null,0]
[null,null,null,null,null,null,null,null,null,null,null,0]
[null,null,null,null,null,null,null,null,null,null,null,0]
[null,null,null,null,null,null,null,null,null,null,null,0]
[null,null,null,null,null,null,null,null,null,null,null,0]
["8.5","¿Quién apoya en esas decisiones a",{"$f":"_xlfn.CONCAT('Informacion preliminar del caso'!B9,\"?\")","v":"?"},"Persona que responde","¿Quién realiza el apoyo? Mencione un evento específico","¿Por qué realiza esta actividad?","¿Hace cuánto tiempo realiza este apoyo?","OBSERVACIONES"]
[null,null,null,null,null,null,null,null,null,null,{"$f":"IF(F40=\"Porque tiene un contrato\",1,IF(F40=\"Por ser el único que podía\",2,IF(F40=\"Por solicitud de la VcD\",5,IF(F40=\"Por decisión familiar\",3,IF(F40=\"Por iniciativa propia\",4,)))))","v":0},{"$f":"IF(G40=\"Últimos 6 meses\",1,IF(G40=\"Entre 6 meses y 1 año\",1.5,IF(G40=\"Entre 1 año y 2 años\",2,IF(G40=\"Entre 2 y 3 Años\",3,IF(G40=\"Mas de 3 años\",5,)))))","v":0}]
[null,null,null,null,null,null,null,null,null,null,{"$f":"IF(F41=\"Porque tiene un contrato\",1,IF(F41=\"Por ser el único que podía\",2,IF(F41=\"Por solicitud de la VcD\",5,IF(F41=\"Por decisión familiar\",3,IF(F41=\"Por iniciativa propia\",4,)))))","v":0},{"$f":"IF(G41=\"Últimos 6 meses\",1,IF(G41=\"Entre 6 meses y 1 año\",1.5,IF(G41=\"Entre 1 año y 2 años\",2,IF(G41=\"Entre 2 y 3 Años\",3,IF(G41=\"Mas de 3 años\",5,)))))","v":0}]
[null,null,null,null,null,null,null,null,null,null,0,0]
[null,null,null,null,null,null,null,null,null,null,0,0]
[null,null,null,null,null,null,null,null,null,null,0,0]
[null,null,null,null,null,null,null,null,null,null,0,0]
[null,null,null,null,null,null,null,null,null,null,0,0]
["8.6",{"$f":"_xlfn.CONCAT(\"¿\",'Informacion preliminar del caso'!B9)","v":"¿"},"tiene una lista de las cosas que quiere comprar?","Persona que responde","RESPUESTA","¿En qué basa su respuesta? Mencione un evento específico","Tipo de Respuesta","OBSERVACIONES"]
[null,null,null,null,null,null,null,null,null,null,null,{"$f":"IF(G48=\"Sin argumento \",1,IF(G48=\"Confuso\",2,IF(G48=\"Superficial\",3,IF(G48=\"Amplio\",4,IF(G48=\"Profundo\",5,)))))","v":0}]
[null,null,null,null,null,null,null,null,null,null,null,0]
[null,null,null,null,null,null,null,null,null,null,null,0]
[null,null,null,null,null,null,null,null,null,null,null,0]
[null,null,null,null,null,null,null,null,null,null,null,0]
[null,null,null,null,null,null,null,null,null,null,null,0]
["8.7",{"$f":"_xlfn.CONCAT(\"¿\",'Informacion preliminar del caso'!B9)","v":"¿"},"recibe apoyo en la definicion de la lista?","Persona que responde","RESPUESTA","¿En qué basa su respuesta? Mencione un evento específico","Tipo de Respuesta","OBSERVACIONES"]
[null,null,null,null,null,null,null,null,null,null,null,{"$f":"IF(G55=\"Sin argumento \",1,IF(G55=\"Confuso\",2,IF(G55=\"Superficial\",3,IF(G55=\"Amplio\",4,IF(G55=\"Profundo\",5,)))))","v":0}]
[null,null,null,null,null,null,null,null,null,null,null,0]
[null,null,null,null,null,null,null,null,null,null,null,0]
[null,null,null,null,null,null,null,null,null,null,null,0]
[null,null,null,null,null,null,null,null,null,null,null,0]
[null,null,null,null,null,null,null,null,null,null,null,0]
["8.8","¿Quién apoya en esas decisiones a",{"$f":"_xlfn.CONCAT('Informacion preliminar del caso'!B9,\"?\")","v":"?"},"Persona que responde","¿Quién realiza el apoyo? Mencione un evento específico","¿Por qué realiza esta actividad?","¿Hace cuánto tiempo realiza este apoyo?","OBSERVACIONES"]
[null,null,null,null,null,null,null,null,null,null,{"$f":"IF(F62=\"Porque tiene un contrato\",1,IF(F62=\"Por ser el único que podía\",2,IF(F62=\"Por solicitud de la VcD\",5,IF(F62=\"Por decisión familiar\",3,IF(F62=\"Por iniciativa propia\",4,)))))","v":0},{"$f":"IF(G62=\"Últimos 6 meses\",1,IF(G62=\"Entre 6 meses y 1 año\",1.5,IF(G62=\"Entre 1 año y 2 años\",2,IF(G62=\"Entre 2 y 3 Años\",3,IF(G62=\"Mas de 3 años\",5,)))))","v":0}]
[null,null,null,null,null,null,null,null,null,null,0,0]
[null,null,null,null,null,null,null,null,null,null,0,0]
[null,null,null,null,null,null,null,null,null,null,0,0]
[null,null,null,null,null,null,null,null,null,null,0,0]
[null,null,null,null,null,null,null,null,null,null,0,0]
["8.9",{"$f":"_xlfn.CONCAT(\"¿\",'Informacion preliminar del caso'!B9)","v":"¿"},"necesita de otras personas para revisar documentos y recibos bancarios? ","Persona que responde","RESPUESTA","¿En qué basa su respuesta? Mencione un evento específico","Tipo de Respuesta","OBSERVACIONES"]
[null,null,null,null,null,null,null,null,null,null,null,{"$f":"IF(G69=\"Sin argumento \",1,IF(G69=\"Confuso\",2,IF(G69=\"Superficial\",3,IF(G69=\"Amplio\",4,IF(G69=\"Profundo\",5,)))))","v":0}]
[null,null,null,null,null,null,null,null,null,null,null,0]
[null,null,null,null,null,null,null,null,null,null,null,0]
[null,null,null,null,null,null,null,null,null,null,null,0]
[null,null,null,null,null,null,null,null,null,null,null,0]
[null,null,null,null,null,null,null,null,null,null,null,0]
["8.10","¿Quién apoya en esas decisiones a",{"$f":"_xlfn.CONCAT('Informacion preliminar del caso'!B9,\"?\")","v":"?"},"Persona que responde","¿Quién realiza el apoyo? Mencione un evento específico","¿Por qué realiza esta actividad?","¿Hace cuánto tiempo realiza este apoyo?","OBSERVACIONES"]
[null,null,null,null,null,null,null,null,null,null,{"$f":"IF(F76=\"Porque tiene un contrato\",1,IF(F76=\"Por ser el único que podía\",2,IF(F76=\"Por solicitud de la VcD\",5,IF(F76=\"Por decisión familiar\",3,IF(F76=\"Por iniciativa propia\",4,)))))","v":0},{"$f":"IF(G76=\"Últimos 6 meses\",1,IF(G76=\"Entre 6 meses y 1 año\",1.5,IF(G76=\"Entre 1 año y 2 años\",2,IF(G76=\"Entre 2 y 3 Años\",3,IF(G76=\"Mas de 3 años\",5,)))))","v":0}]
[null,null,null,null,null,null,null,null,null,null,0,0]
[null,null,null,null,null,null,null,null,null,null,0,0]
[null,null,null,null,null,null,null,null,null,null,0,0]
[null,null,null,null,null,null,null,null,null,null,0,0]
[null,null,null,null,null,null,null,null,null,null,0,0]
["8.11",{"$f":"_xlfn.CONCAT(\"¿\",'Informacion preliminar del caso'!B9)","v":"¿"},"va al banco y hace pagos?","Persona que responde","RESPUESTA","¿En qué basa su respuesta? Mencione un evento específico","Tipo de Respuesta","OBSERVACIONES"]
[null,null,null,null,null,null,null,null,null,null,null,{"$f":"IF(G83=\"Sin argumento \",1,IF(G83=\"Confuso\",2,IF(G83=\"Superficial\",3,IF(G83=\"Amplio\",4,IF(G83=\"Profundo\",5,)))))","v":0}]
[null,null,null,null,null,null,null,null,null,null,null,0]
[null,null,null,null,null,null,null,null,null,null,null,0]
[null,null,null,null,null,null,null,null,null,null,null,0]
[null,null,null,null,null,null,null,null,null,null,null,0]
[null,null,null,null,null,null,null,null,null,null,null,0]
["8.12",{"$f":"_xlfn.CONCAT(\"¿\",'Informacion preliminar del caso'!B9)","v":"¿"},"necesita que alguien lo apoye en esta actividad?",null,null,null,null,null,null,null,null,0]
[null,null,null,null,null,null,null,null,null,null,null,0]
[null,null,null,null,null,null,null,null,null,null,null,0]
[null,null,null,null,null,null,null,null,null,null,null,0]
[null,null,null,null,null,null,null,null,null,null,null,0]
[null,null,null,null,null,null,null,null,null,null,null,0]
[null,null,null,null,null,null,null,null,null,null,null,0]
["8.13","¿Quién apoya en esas decisiones a",{"$f":"_xlfn.CONCAT('Informacion preliminar del caso'!B9,\"?\")","v":"?"},"Persona que responde","¿Quién realiza el apoyo? Mencione un evento específico","¿Por qué realiza esta actividad?","¿Hace cuánto tiempo realiza este apoyo?","OBSERVACIONES"]
[null,null,null,null,null,null,null,null,null,null,{"$f":"IF(F97=\"Porque tiene un contrato\",1,IF(F97=\"Por ser el único que podía\",2,IF(F97=\"Por solicitud de la VcD\",5,IF(F97=\"Por decisión familiar\",3,IF(F97=\"Por iniciativa propia\",4,)))))","v":0},{"$f":"IF(G97=\"Últimos 6 meses\",1,IF(G97=\"Entre 6 meses y 1 año\",1.5,IF(G97=\"Entre 1 año y 2 años\",2,IF(G97=\"Entre 2 y 3 Años\",3,IF(G97=\"Mas de 3 años\",5,)))))","v":0}]
[null,null,null,null,null,null,null,null,null,null,0,0]
[null,null,null,null,null,null,null,null,null,null,0,0]
[null,null,null,null,null,null,null,null,null,null,0,0]
[null,null,null,null,null,null,null,null,null,null,0,0]
[null,null,null,null,null,null,null,null,null,null,0,0]
["8.14",{"$f":"_xlfn.CONCAT(\"¿\",'Informacion preliminar del caso'!B9)","v":"¿"},"tiene cuenta de ahorros? ","Persona que responde","RESPUESTA","¿En qué basa su respuesta? Mencione un evento específico","Tipo de Respuesta","OBSERVACIONES"]
[null,null,null,null,null,null,null,null,null,null,null,{"$f":"IF(G104=\"Sin argumento \",1,IF(G104=\"Confuso\",2,IF(G104=\"Superficial\",3,IF(G104=\"Amplio\",4,IF(G104=\"Profundo\",5,)))))","v":0}]
[null,null,null,null,null,null,null,null,null,null,null,0]
[null,null,null,null,null,null,null,null,null,null,null,0]
[null,null,null,null,null,null,null,null,null,null,null,0]
[null,null,null,null,null,null,null,null,null,null,null,0]
[null,null,null,null,null,null,null,null,null,null,null,0]
["8.15",{"$f":"_xlfn.CONCAT(\"¿\",'Informacion preliminar del caso'!B9)","v":"¿"},"necesita que alguien lo apoye en su uso y manejo?",null,null,null,null,null,null,null,null,0]
[null,null,null,null,null,null,null,null,null,null,null,0]
[null,null,null,null,null,null,null,null,null,null,null,0]
[null,null,null,null,null,null,null,null,null,null,null,0]
[null,null,null,null,null,null,null,null,null,null,null,0]
[null,null,null,null,null,null,null,null,null,null,null,0]
[null,null,null,null,null,null,null,null,null,null,null,0]
["8.16","¿Quién apoya en esas decisiones a",{"$f":"_xlfn.CONCAT('Informacion preliminar del caso'!B9,\"?\")","v":"?"},"Persona que responde","¿Quién realiza el apoyo? Mencione un evento específico","¿Por qué realiza esta actividad?","¿Hace cuánto tiempo realiza este apoyo?","OBSERVACIONES"]
[null,null,null,null,null,null,null,null,null,null,{"$f":"IF(F118=\"Porque tiene un contrato\",1,IF(F118=\"Por ser el único que podía\",2,IF(F118=\"Por solicitud de la VcD\",5,IF(F118=\"Por decisión familiar\",3,IF(F118=\"Por iniciativa propia\",4,)))))","v":0},{"$f":"IF(G118=\"Últimos 6 meses\",1,IF(G118=\"Entre 6 meses y 1 año\",1.5,IF(G118=\"Entre 1 año y 2 años\",2,IF(G118=\"Entre 2 y 3 Años\",3,IF(G118=\"Mas de 3 años\",5,)))))","v":0}]
[null,null,null,null,null,null,null,null,null,null,0,0]
[null,null,null,null,null,null,null,null,null,null,0,0]
[null,null,null,null,null,null,null,null,null,null,0,0]
[null,null,null,null,null,null,null,null,null,null,0,0]
[null,null,null,null,null,null,null,null,null,null,0,0]
["8.17",{"$f":"_xlfn.CONCAT(\"¿\",'Informacion preliminar del caso'!B9)","v":"¿"},"utiliza cajeros automáticos?  ","Persona que responde","RESPUESTA","¿En qué basa su respuesta? Mencione un evento específico","Tipo de Respuesta","OBSERVACIONES"]
[null,null,null,null,null,null,null,null,null,null,null,{"$f":"IF(G125=\"Sin argumento \",1,IF(G125=\"Confuso\",2,IF(G125=\"Superficial\",3,IF(G125=\"Amplio\",4,IF(G125=\"Profundo\",5,)))))","v":0}]
[null,null,null,null,null,null,null,null,null,null,null,0]
[null,null,null,null,null,null,null,null,null,null,null,0]
[null,null,null,null,null,null,null,null,null,null,null,0]
[null,null,null,null,null,null,null,null,null,null,null,0]
[null,null,null,null,null,null,null,null,null,null,null,0]
["8.18",{"$f":"_xlfn.CONCAT(\"¿\",'Informacion preliminar del caso'!B9)","v":"¿"},"necesita que alguien lo apoye en esta actividad?",null,null,null,null,null,null,null,null,0]
[null,null,null,null,null,null,null,null,null,null,null,0]
[null,null,null,null,null,null,null,null,null,null,null,0]
[null,null,null,null,null,null,null,null,null,null,null,0]
[null,null,null,null,null,null,null,null,null,null,null,0]
[null,null,null,null,null,null,null,null,null,null,null,0]
[null,null,null,null,null,null,null,null,null,null,null,0]
["8.19","¿Quién apoya en esas decisiones a",{"$f":"_xlfn.CONCAT('Informacion preliminar del caso'!B9,\"?\")","v":"?"},"Persona que responde","¿Quién realiza el apoyo? Mencione un evento específico","¿Por qué realiza esta actividad?","¿Hace cuánto tiempo realiza este apoyo?","OBSERVACIONES"]
[null,null,null,null,null,null,null,null,null,null,{"$f":"IF(F139=\"Porque tiene un contrato\",1,IF(F139=\"Por ser el único que podía\",2,IF(F139=\"Por solicitud de la VcD\",5,IF(F139=\"Por decisión familiar\",3,IF(F139=\"Por iniciativa propia\",4,)))))","v":0},{"$f":"IF(G139=\"Últimos 6 meses\",1,IF(G139=\"Entre 6 meses y 1 año\",1.5,IF(G139=\"Entre 1 año y 2 años\",2,IF(G139=\"Entre 2 y 3 Años\",3,IF(G139=\"Mas de 3 años\",5,)))))","v":0}]
[null,null,null,null,null,null,null,null,null,null,0,0]
[null,null,null,null,null,null,null,null,null,null,0,0]
[null,null,null,null,null,null,null,null,null,null,0,0]
[null,null,null,null,null,null,null,null,null,null,0,0]
[null,null,null,null,null,null,null,null,null,null,0,0]
["8.20",{"$f":"_xlfn.CONCAT(\"¿\",'Informacion preliminar del caso'!B9)","v":"¿"},"requiere que otra persona le acompañe a hacer compras o pagos cotidianos?","Persona que responde","RESPUESTA","¿En qué basa su respuesta? Mencione un evento específico","Tipo de Respuesta","OBSERVACIONES"]
[null,null,null,null,null,null,null,null,null,null,null,{"$f":"IF(G146=\"Sin argumento \",1,IF(G146=\"Confuso\",2,IF(G146=\"Superficial\",3,IF(G146=\"Amplio\",4,IF(G146=\"Profundo\",5,)))))","v":0}]
[null,null,null,null,null,null,null,null,null,null,null,0]
[null,null,null,null,null,null,null,null,null,null,null,0]
[null,null,null,null,null,null,null,null,null,null,null,0]
[null,null,null,null,null,null,null,null,null,null,null,0]
[null,null,null,null,null,null,null,null,null,null,null,0]
["8.21","¿Quién apoya en esas decisiones a",{"$f":"_xlfn.CONCAT('Informacion preliminar del caso'!B9,\"?\")","v":"?"},"Persona que responde","¿Quién realiza el apoyo? Mencione un evento específico","¿Por qué realiza esta actividad?","¿Hace cuánto tiempo realiza este apoyo?","OBSERVACIONES"]
[null,null,null,null,null,null,null,null,null,null,{"$f":"IF(F153=\"Porque tiene un contrato\",1,IF(F153=\"Por ser el único que podía\",2,IF(F153=\"Por solicitud de la VcD\",5,IF(F153=\"Por decisión familiar\",3,IF(F153=\"Por iniciativa propia\",4,)))))","v":0},{"$f":"IF(G153=\"Últimos 6 meses\",1,IF(G153=\"Entre 6 meses y 1 año\",1.5,IF(G153=\"Entre 1 año y 2 años\",2,IF(G153=\"Entre 2 y 3 Años\",3,IF(G153=\"Mas de 3 años\",5,)))))","v":0}]
[null,null,null,null,null,null,null,null,null,null,0,0]
[null,null,null,null,null,null,null,null,null,null,0,0]
[null,null,null,null,null,null,null,null,null,null,0,0]
[null,null,null,null,null,null,null,null,null,null,0,0]
[null,null,null,null,null,null,null,null,null,null,0,0]
["8.22",{"$f":"_xlfn.CONCAT(\"¿\",'Informacion preliminar del caso'!B9)","v":"¿"},"prefiere el acompañamiento de otras personas para tomar decisiones financieras teniendo en cuenta sus deseos (por ejemplo: gastar su dinero, manejar la pensión y subsidio, vender sus  bienes, usar la tarjeta de crédito)?","Persona que responde","RESPUESTA","¿En qué basa su respuesta? Mencione un evento específico","Tipo de Respuesta","OBSERVACIONES"]
[null,null,null,null,null,null,null,null,null,null,null,{"$f":"IF(G160=\"Sin argumento \",1,IF(G160=\"Confuso\",2,IF(G160=\"Superficial\",3,IF(G160=\"Amplio\",4,IF(G160=\"Profundo\",5,)))))","v":0}]
[null,null,null,null,null,null,null,null,null,null,null,0]
[null,null,null,null,null,null,null,null,null,null,null,0]
[null,null,null,null,null,null,null,null,null,null,null,0]
[null,null,null,null,null,null,null,null,null,null,null,0]
[null,null,null,null,null,null,null,null,null,null,null,0]
["8.23","¿Quién apoya en esas decisiones a",{"$f":"_xlfn.CONCAT('Informacion preliminar del caso'!B9,\"?\")","v":"?"},"Persona que responde","¿Quién realiza el apoyo? Mencione un evento específico","¿Por qué realiza esta actividad?","¿Hace cuánto tiempo realiza este apoyo?","OBSERVACIONES"]
[null,null,null,null,null,null,null,null,null,null,{"$f":"IF(F167=\"Porque tiene un contrato\",1,IF(F167=\"Por ser el único que podía\",2,IF(F167=\"Por solicitud de la VcD\",5,IF(F167=\"Por decisión familiar\",3,IF(F167=\"Por iniciativa propia\",4,)))))","v":0},{"$f":"IF(G167=\"Últimos 6 meses\",1,IF(G167=\"Entre 6 meses y 1 año\",1.5,IF(G167=\"Entre 1 año y 2 años\",2,IF(G167=\"Entre 2 y 3 Años\",3,IF(G167=\"Mas de 3 años\",5,)))))","v":0}]
[null,null,null,null,null,null,null,null,null,null,0,0]
[null,null,null,null,null,null,null,null,null,null,0,0]
[null,null,null,null,null,null,null,null,null,null,0,0]
[null,null,null,null,null,null,null,null,null,null,0,0]
[null,null,null,null,null,null,null,null,null,null,0,0]
["8.24",{"$f":"_xlfn.CONCAT(\"¿\",'Informacion preliminar del caso'!B9)","v":"¿"},"cuánto es la máxima cantidad de plata que  ha manejado?","Persona que responde","RESPUESTA","¿En qué basa su respuesta? Mencione un evento específico","Tipo de Respuesta","OBSERVACIONES"]
[null,null,null,null,null,null,null,null,null,null,null,{"$f":"IF(G174=\"Sin argumento \",1,IF(G174=\"Confuso\",2,IF(G174=\"Superficial\",3,IF(G174=\"Amplio\",4,IF(G174=\"Profundo\",5,)))))","v":0}]
[null,null,null,null,null,null,null,null,null,null,null,0]
[null,null,null,null,null,null,null,null,null,null,null,0]
[null,null,null,null,null,null,null,null,null,null,null,0]
[null,null,null,null,null,null,null,null,null,null,null,0]
[null,null,null,null,null,null,null,null,null,null,null,0]
["8.25",{"$f":"_xlfn.CONCAT(\"¿\",'Informacion preliminar del caso'!B9)","v":"¿"},"alguien le ayudo a tomar la decisión en que gastar dinero que recibio la última vez?",null,null,null,null,null,null,null,null,0]
[null,null,null,null,null,null,null,null,null,null,null,0]
[null,null,null,null,null,null,null,null,null,null,null,0]
[null,null,null,null,null,null,null,null,null,null,null,0]
[null,null,null,null,null,null,null,null,null,null,null,0]
[null,null,null,null,null,null,null,null,null,null,null,0]
[null,null,null,null,null,null,null,null,null,null,null,0]
["8.26","¿Quién apoya en esas decisiones a",{"$f":"_xlfn.CONCAT('Informacion preliminar del caso'!B9,\"?\")","v":"?"},"Persona que responde","¿Quién realiza el apoyo? Mencione un evento específico","¿Por qué realiza esta actividad?","¿Hace cuánto tiempo realiza este apoyo?","OBSERVACIONES"]
[null,null,null,null,null,null,null,null,null,null,{"$f":"IF(F188=\"Porque tiene un contrato\",1,IF(F188=\"Por ser el único que podía\",2,IF(F188=\"Por solicitud de la VcD\",5,IF(F188=\"Por decisión familiar\",3,IF(F188=\"Por iniciativa propia\",4,)))))","v":0},{"$f":"IF(G188=\"Últimos 6 meses\",1,IF(G188=\"Entre 6 meses y 1 año\",1.5,IF(G188=\"Entre 1 año y 2 años\",2,IF(G188=\"Entre 2 y 3 Años\",3,IF(G188=\"Mas de 3 años\",5,)))))","v":0}]
[null,null,null,null,null,null,null,null,null,null,0,0]
[null,null,null,null,null,null,null,null,null,null,0,0]
[null,null,null,null,null,null,null,null,null,null,0,0]
[null,null,null,null,null,null,null,null,null,null,0,0]
[null,null,null,null,null,null,null,null,null,null,0,0]

{"sheet":"TD PA","index":10,"n_rows":126,"n_cols":12,"rows_kept":126,"cut":false,"hidden":true,"merged":[[0,0,5,2],[0,3,1,4],[0,5,1,5],[2,3,3,4],[2,5,3,5],[4,3,5,4],[35,2,41,2],[42,1,48,1],[49,1,55,1],[84,1,90,1],[77,2,83,2],[77,1,83,1],[84,2,90,2],[63,2,69,2],[70,2,76,2],[42,2,48,2],[49,2,55,2],[56,2,62,2],[63,0,69,0],[70,0,76,0],[77,0,83,0],[84,0,90,0],[35,1,41,1],[63,1,69,1],[70,1,76,1],[35,0,41,0],[42,0,48,0],[49,0,55,0],[56,0,62,0],[56,1,62,1],[6,0,6,7],[14,0,20,0],[21,0,27,0],[28,0,34,0],[8,1,13,1],[14,1,20,1],[21,1,27,1],[28,1,34,1],[8,2,13,2],[14,2,20,2],[21,2,27,2],[28,2,34,2],[8,0,13,0],[119,2,125,2],[91,2,97,2],[98,2,104,2],[105,2,111,2],[112,0,118,0],[112,1,118,1],[112,2,118,2],[91,0,97,0],[98,0,104,0],[105,0,111,0],[119,0,125,0],[91,1,97,1],[98,1,104,1],[105,1,111,1],[119,1,125,1]]}
[null,null,null,"TOMA DE DECISIONES Y APOYOS PARA TOMAR DECISIONES",null,"Código:"]
[]
[null,null,null,"REPARACIÓN INTEGRAL",null,"Versión:"]
[]
[null,null,null,"TOMA DE DECISIONES CON APOYO EN LA ENTREGA DE LA INDEMNIZACIÓN ADMINISTRATIVA",null,"Fecha: (DD/MM/AA)"]
[null,null,null,null,null,"Paginas"]
["9. TOMA DE DECISIONES Y APOYOS PARA TOMAR DECISIONES"]
[null,null,null,"Persona que responde","RESPUESTA","¿En qué basa su respuesta? Mencione un evento específico","Tipo de Respuesta","OBSERVACIONES"]
["9.1",{"$f":"_xlfn.CONCAT(\"¿\",'Informacion preliminar del caso'!B9)","v":"¿"},"elige la comida que le gusta y la ropa que quiere usar?",null,null,null,null,null,null,null,null,{"$f":"IF(G9=\"Sin argumento \",1,IF(G9=\"Confuso\",2,IF(G9=\"Superficial\",3,IF(G9=\"Amplio\",4,IF(G9=\"Profundo\",5,)))))","v":0}]
[null,null,null,null,null,null,null,null,null,null,null,0]
[null,null,null,null,null,null,null,null,null,null,null,0]
[null,null,null,null,null,null,null,null,null,null,null,0]
[null,null,null,null,null,null,null,null,null,null,null,0]
[null,null,null,null,null,null,null,null,null,null,null,0]
["9.2","¿Quién toma esas decisiones por",{"$f":"_xlfn.CONCAT('Informacion preliminar del caso'!B9,\"?\")","v":"?"},"Persona que responde","¿Quién toma la  decisión? Mencione un evento específico","¿Por qué realiza esta actividad?","¿Hace cuánto tiempo realiza este apoyo?","OBSERVACIONES"]
[null,null,null,null,null,null,null,null,null,null,{"$f":"IF(F16=\"Porque tiene un contrato\",1,IF(F16=\"Por ser el único que podía\",2,IF(F16=\"Por solicitud de la VcD\",5,IF(F16=\"Por decisión familiar\",3,IF(F16=\"Por iniciativa propia\",4,)))))","v":0},{"$f":"IF(G16=\"Últimos 6 meses\",1,IF(G16=\"Entre 6 meses y 1 año\",1.5,IF(G16=\"Entre 1 año y 2 años\",2,IF(G16=\"Entre 2 y 3 Años\",3,IF(G16=\"Mas de 3 años\",5,)))))","v":0}]
[null,null,null,null,null,null,null,null,null,null,0,0]
[null,null,null,null,null,null,null,null,null,null,0,0]
[null,null,null,null,null,null,null,null,null,null,0,0]
[null,null,null,null,null,null,null,null,null,null,0,0]
[null,null,null,null,null,null,null,null,null,null,0,0]
["9.3",{"$f":"_xlfn.CONCAT(\"¿\",'Informacion preliminar del caso'!B9)","v":"¿"},"escoge sus amigos, las personas con las que quiere conversar o las personas que quiere que lo apoyen?","Persona que responde","RESPUESTA","¿En qué basa su respuesta? Mencione un evento específico","Tipo de Respuesta","OBSERVACIONES"]
[null,null,null,null,null,null,null,null,null,null,null,{"$f":"IF(G23=\"Sin argumento \",1,IF(G23=\"Confuso\",2,IF(G23=\"Superficial\",3,IF(G23=\"Amplio\",4,IF(G23=\"Profundo\",5,)))))","v":0}]
[null,null,null,null,null,null,null,null,null,null,null,0]
[null,null,null,null,null,null,null,null,null,null,null,0]
[null,null,null,null,null,null,null,null,null,null,null,0]
[null,null,null,null,null,null,null,null,null,null,null,0]
[null,null,null,null,null,null,null,null,null,null,null,0]
["9.4","¿Quién toma esas decisiones por ",{"$f":"_xlfn.CONCAT('Informacion preliminar del caso'!B9,\"?\")","v":"?"},"Persona que responde","¿Quién toma la  decisión? Mencione un evento específico","¿Por qué realiza esta actividad?","¿Hace cuánto tiempo realiza este apoyo?","OBSERVACIONES"]
[null,null,null,null,null,null,null,null,null,null,{"$f":"IF(F30=\"Porque tiene un contrato\",1,IF(F30=\"Por ser el único que podía\",2,IF(F30=\"Por solicitud de la VcD\",5,IF(F30=\"Por decisión familiar\",3,IF(F30=\"Por iniciativa propia\",4,)))))","v":0},{"$f":"IF(G30=\"Últimos 6 meses\",1,IF(G30=\"Entre 6 meses y 1 año\",1.5,IF(G30=\"Entre 1 año y 2 años\",2,IF(G30=\"Entre 2 y 3 Años\",3,IF(G30=\"Mas de 3 años\",5,)))))","v":0}]
[null,null,null,null,null,null,null,null,null,null,0,0]
[null,null,null,null,null,null,null,null,null,null,0,0]
[null,null,null,null,null,null,null,null,null,null,0,0]
[null,null,null,null,null,null,null,null,null,null,0,0]
[null,null,null,null,null,null,null,null,null,null,0,0]
["9.5","¿Alguna vez le preguntaron con quién y donde quería vivir",{"$f":"_xlfn.CONCAT('Informacion preliminar del caso'!B9,\"?\")","v":"?"},"Persona que responde","RESPUESTA","¿En qué basa su respuesta? Mencione un evento específico","Tipo de Respuesta","OBSERVACIONES"]
[null,null,null,null,null,null,null,null,null,null,null,{"$f":"IF(G37=\"Sin argumento \",1,IF(G37=\"Confuso\",2,IF(G37=\"Superficial\",3,IF(G37=\"Amplio\",4,IF(G37=\"Profundo\",5,)))))","v":0}]
[null,null,null,null,null,null,null,null,null,null,null,0]
[null,null,null,null,null,null,null,null,null,null,null,0]
[null,null,null,null,null,null,null,null,null,null,null,0]
[null,null,null,null,null,null,null,null,null,null,null,0]
[null,null,null,null,null,null,null,null,null,null,null,0]
["9.6","¿Quién toma esas decisiones por",{"$f":"_xlfn.CONCAT('Informacion preliminar del caso'!B9,\"?\")","v":"?"},"Persona que responde","¿Quién toma la  decisión? Mencione un evento específico","¿Por qué realiza esta actividad?","¿Hace cuánto tiempo realiza este apoyo?","OBSERVACIONES"]
[null,null,null,null,null,null,null,null,null,null,{"$f":"IF(F44=\"Porque tiene un contrato\",1,IF(F44=\"Por ser el único que podía\",2,IF(F44=\"Por solicitud de la VcD\",5,IF(F44=\"Por decisión familiar\",3,IF(F44=\"Por iniciativa propia\",4,)))))","v":0},{"$f":"IF(G44=\"Últimos 6 meses\",1,IF(G44=\"Entre 6 meses y 1 año\",1.5,IF(G44=\"Entre 1 año y 2 años\",2,IF(G44=\"Entre 2 y 3 Años\",3,IF(G44=\"Mas de 3 años\",5,)))))","v":0}]
[null,null,null,null,null,null,null,null,null,null,0,0]
[null,null,null,null,null,null,null,null,null,null,0,0]
[null,null,null,null,null,null,null,null,null,null,0,0]
[null,null,null,null,null,null,null,null,null,null,0,0]
[null,null,null,null,null,null,null,null,null,null,0,0]
["9.7",{"$f":"_xlfn.CONCAT(\"¿\",'Informacion preliminar del caso'!B9)","v":"¿"},"elige los momentos de acudir al medico e iniciar tratamientos de salud?","Persona que responde","RESPUESTA","¿En qué basa su respuesta? Mencione un evento específico","Tipo de Respuesta","OBSERVACIONES"]
[null,null,null,null,null,null,null,null,null,null,null,{"$f":"IF(G51=\"Sin argumento \",1,IF(G51=\"Confuso\",2,IF(G51=\"Superficial\",3,IF(G51=\"Amplio\",4,IF(G51=\"Profundo\",5,)))))","v":0}]
[null,null,null,null,null,null,null,null,null,null,null,0]
[null,null,null,null,null,null,null,null,null,null,null,0]
[null,null,null,null,null,null,null,null,null,null,null,0]
[null,null,null,null,null,null,null,null,null,null,null,0]
[null,null,null,null,null,null,null,null,null,null,null,0]
["9.8","¿Quién toma esas decisiones por ",{"$f":"_xlfn.CONCAT('Informacion preliminar del caso'!B9,\"?\")","v":"?"},"Persona que responde","¿Quién toma la  decisión? Mencione un evento específico","¿Por qué realiza esta actividad?","¿Hace cuánto tiempo realiza este apoyo?","OBSERVACIONES"]
[null,null,null,null,null,null,null,null,null,null,{"$f":"IF(F58=\"Porque tiene un contrato\",1,IF(F58=\"Por ser el único que podía\",2,IF(F58=\"Por solicitud de la VcD\",5,IF(F58=\"Por decisión familiar\",3,IF(F58=\"Por iniciativa propia\",4,)))))","v":0},{"$f":"IF(G58=\"Últimos 6 meses\",1,IF(G58=\"Entre 6 meses y 1 año\",1.5,IF(G58=\"Entre 1 año y 2 años\",2,IF(G58=\"Entre 2 y 3 Años\",3,IF(G58=\"Mas de 3 años\",5,)))))","v":0}]
[null,null,null,null,null,null,null,null,null,null,0,0]
[null,null,null,null,null,null,null,null,null,null,0,0]
[null,null,null,null,null,null,null,null,null,null,0,0]
[null,null,null,null,null,null,null,null,null,null,0,0]
[null,null,null,null,null,null,null,null,null,null,0,0]
["9.9",{"$f":"_xlfn.CONCAT(\"¿\",'Informacion preliminar del caso'!B9)","v":"¿"}," decide lo que quiere hacer en su tiempo libre, por ejemplo: si quiere oír música, hacer cosas con amigos, ir a cine o hacer un deporte?","Persona que responde","RESPUESTA","¿En qué basa su respuesta? Mencione un evento específico","Tipo de Respuesta","OBSERVACIONES"]
[null,null,null,null,null,null,null,null,null,null,null,{"$f":"IF(G65=\"Sin argumento \",1,IF(G65=\"Confuso\",2,IF(G65=\"Superficial\",3,IF(G65=\"Amplio\",4,IF(G65=\"Profundo\",5,)))))","v":0}]
[null,null,null,null,null,null,null,null,null,null,null,0]
[null,null,null,null,null,null,null,null,null,null,null,0]
[null,null,null,null,null,null,null,null,null,null,null,0]
[null,null,null,null,null,null,null,null,null,null,null,0]
[null,null,null,null,null,null,null,null,null,null,null,0]
["9.10","¿Quién toma esas decisiones por",{"$f":"_xlfn.CONCAT('Informacion preliminar del caso'!B9,\"?\")","v":"?"},"Persona que responde","¿Quién toma la  decisión? Mencione un evento específico","¿Por qué realiza esta actividad?","¿Hace cuánto tiempo realiza este apoyo?","OBSERVACIONES"]
[null,null,null,null,null,null,null,null,null,null,{"$f":"IF(F72=\"Porque tiene un contrato\",1,IF(F72=\"Por ser el único que podía\",2,IF(F72=\"Por solicitud de la VcD\",5,IF(F72=\"Por decisión familiar\",3,IF(F72=\"Por iniciativa propia\",4,)))))","v":0},{"$f":"IF(G72=\"Últimos 6 meses\",1,IF(G72=\"Entre 6 meses y 1 año\",1.5,IF(G72=\"Entre 1 año y 2 años\",2,IF(G72=\"Entre 2 y 3 Años\",3,IF(G72=\"Mas de 3 años\",5,)))))","v":0}]
[null,null,null,null,null,null,null,null,null,null,0,0]
[null,null,null,null,null,null,null,null,null,null,0,0]
[null,null,null,null,null,null,null,null,null,null,0,0]
[null,null,null,null,null,null,null,null,null,null,0,0]
[null,null,null,null,null,null,null,null,null,null,0,0]
["9.11",{"$f":"_xlfn.CONCAT(\"¿\",'Informacion preliminar del caso'!B9)","v":"¿"},"decidió estudiar?","Persona que responde","RESPUESTA","¿En qué basa su respuesta? Mencione un evento específico","Tipo de Respuesta","OBSERVACIONES"]
[null,null,null,null,null,null,null,null,null,null,null,{"$f":"IF(G79=\"Sin argumento \",1,IF(G79=\"Confuso\",2,IF(G79=\"Superficial\",3,IF(G79=\"Amplio\",4,IF(G79=\"Profundo\",5,)))))","v":0}]
[null,null,null,null,null,null,null,null,null,null,null,0]
[null,null,null,null,null,null,null,null,null,null,null,0]
[null,null,null,null,null,null,null,null,null,null,null,0]
[null,null,null,null,null,null,null,null,null,null,null,0]
[null,null,null,null,null,null,null,null,null,null,null,0]
["9.12","¿Quién toma esas decisiones por ",{"$f":"_xlfn.CONCAT('Informacion preliminar del caso'!B9,\"?\")","v":"?"},"Persona que responde","¿Quién toma la  decisión? Mencione un evento específico","¿Por qué realiza esta actividad?","¿Hace cuánto tiempo realiza este apoyo?","OBSERVACIONES"]
[null,null,null,null,null,null,null,null,null,null,{"$f":"IF(F86=\"Porque tiene un contrato\",1,IF(F86=\"Por ser el único que podía\",2,IF(F86=\"Por solicitud de la VcD\",5,IF(F86=\"Por decisión familiar\",3,IF(F86=\"Por iniciativa propia\",4,)))))","v":0},{"$f":"IF(G86=\"Últimos 6 meses\",1,IF(G86=\"Entre 6 meses y 1 año\",1.5,IF(G86=\"Entre 1 año y 2 años\",2,IF(G86=\"Entre 2 y 3 Años\",3,IF(G86=\"Mas de 3 años\",5,)))))","v":0}]
[null,null,null,null,null,null,null,null,null,null,0,0]
[null,null,null,null,null,null,null,null,null,null,0,0]
[null,null,null,null,null,null,null,null,null,null,0,0]
[null,null,null,null,null,null,null,null,null,null,0,0]
[null,null,null,null,null,null,null,null,null,null,0,0]
["9.13",{"$f":"_xlfn.CONCAT(\"¿\",'Informacion preliminar del caso'!B9)","v":"¿"}," en los trabajos que ha realizado antes recibió dinero o alguna remuneración?","Persona que responde","RESPUESTA","¿En qué basa su respuesta? Mencione un evento específico","Tipo de Respuesta","OBSERVACIONES"]
[null,null,null,null,null,null,null,null,null,null,null,{"$f":"IF(G93=\"Sin argumento \",1,IF(G93=\"Confuso\",2,IF(G93=\"Superficial\",3,IF(G93=\"Amplio\",4,IF(G93=\"Profundo\",5,)))))","v":0}]
[null,null,null,null,null,null,null,null,null,null,null,0]
[null,null,null,null,null,null,null,null,null,null,null,0]
[null,null,null,null,null,null,null,null,null,null,null,0]
[null,null,null,null,null,null,null,null,null,null,null,0]
[null,null,null,null,null,null,null,null,null,null,null,0]
["9.14",{"$f":"_xlfn.CONCAT(\"¿\",'Informacion preliminar del caso'!B9)","v":"¿"},"alguna vez ha tenido que firmar un contrato o un documento importante?",null,null,null,null,null,null,null,null,0]
[null,null,null,null,null,null,null,null,null,null,null,0]
[null,null,null,null,null,null,null,null,null,null,null,0]
[null,null,null,null,null,null,null,null,null,null,null,0]
[null,null,null,null,null,null,null,null,null,null,null,0]
[null,null,null,null,null,null,null,null,null,null,null,0]
[null,null,null,null,null,null,null,null,null,null,null,0]
["9.15",{"$f":"_xlfn.CONCAT(\"¿\",'Informacion preliminar del caso'!B9)","v":"¿"},"     decidió firmar?",null,null,null,null,null,null,null,null,0]
[null,null,null,null,null,null,null,null,null,null,null,0]
[null,null,null,null,null,null,null,null,null,null,null,0]
[null,null,null,null,null,null,null,null,null,null,null,0]
[null,null,null,null,null,null,null,null,null,null,null,0]
[null,null,null,null,null,null,null,null,null,null,null,0]
[null,null,null,null,null,null,null,null,null,null,null,0]
["9.16","¿Quién toma esas decisiones por ",{"$f":"_xlfn.CONCAT('Informacion preliminar del caso'!B9,\"?\")","v":"?"},"Persona que responde","¿Quién toma la  decisión? Mencione un evento específico","¿Por qué realiza esta actividad?","¿Hace cuánto tiempo realiza este apoyo?","OBSERVACIONES"]
[null,null,null,null,null,null,null,null,null,null,{"$f":"IF(F114=\"Porque tiene un contrato\",1,IF(F114=\"Por ser el único que podía\",2,IF(F114=\"Por solicitud de la VcD\",5,IF(F114=\"Por decisión familiar\",3,IF(F114=\"Por iniciativa propia\",4,)))))","v":0},{"$f":"IF(G114=\"Últimos 6 meses\",1,IF(G114=\"Entre 6 meses y 1 año\",1.5,IF(G114=\"Entre 1 año y 2 años\",2,IF(G114=\"Entre 2 y 3 Años\",3,IF(G114=\"Mas de 3 años\",5,)))))","v":0}]
[null,null,null,null,null,null,null,null,null,null,0,0]
[null,null,null,null,null,null,null,null,null,null,0,0]
[null,null,null,null,null,null,null,null,null,null,0,0]
[null,null,null,null,null,null,null,null,null,null,0,0]
[null,null,null,null,null,null,null,null,null,null,0,0]
["9.17",{"$f":"_xlfn.CONCAT(\"¿\",'Informacion preliminar del caso'!B9)","v":"¿"},"está conforme con que otras personas le apoyen en la toma de decisiones?","Persona que responde","RESPUESTA","¿En qué basa su respuesta? Mencione un evento específico","Tipo de Respuesta","OBSERVACIONES"]
[null,null,null,null,null,null,null,null,null,null,null,{"$f":"IF(G121=\"Sin argumento \",1,IF(G121=\"Confuso\",2,IF(G121=\"Superficial\",3,IF(G121=\"Amplio\",4,IF(G121=\"Profundo\",5,)))))","v":0}]
[null,null,null,null,null,null,null,null,null,null,null,0]
[null,null,null,null,null,null,null,null,null,null,null,0]
[null,null,null,null,null,null,null,null,null,null,null,0]
[null,null,null,null,null,null,null,null,null,null,null,0]
[null,null,null,null,null,null,null,null,null,null,null,0]

{"sheet":"Ajustes Razonables Apoyo de la ","index":11,"n_rows":14,"n_cols":3,"rows_kept":14,"cut":false,"hidden":false,"merged":[[0,2,1,2],[2,2,3,2],[13,0,14,0],[8,0,12,0],[6,0,6,2],[0,0,5,0],[0,1,1,1],[2,1,3,1],[4,1,5,1]]}
[null,"IDENTIFICACIÓN DE BARRERAS Y AJUSTES RAZONABLES","Código: 410,08,15-94"]
[]
[null,"PROCESO REPARACIÓN INTEGRAL","Versión: 02"]
[]
[null,"PROCEDIMIENTO TOMA DE DECISIONES CON APOYO","Fecha: 04/12/2019"]
[null,null,"Paginas: 7 de 14"]
["10. IDENTIFICACIÓN DE BARRERAS Y AJUSTES RAZONABLES"]
["Identificación de barreras","Ajustes Razonables"]
["10.1 Comunicativas "]
[]
[]
[]
[]
["10.2 Físicas  "]

{"sheet":"Plan de inversion","index":12,"n_rows":68,"n_cols":6,"rows_kept":68,"cut":false,"hidden":false,"merged":[[0,5,1,5],[2,5,3,5],[0,0,5,0],[0,1,1,4],[2,1,3,4],[4,1,5,4],[55,3,55,4],[56,3,56,4],[48,1,48,5],[22,1,22,3],[22,4,22,5],[24,0,35,0],[36,0,47,0],[36,3,36,4],[37,3,37,4],[38,3,38,4],[39,3,39,4],[40,3,40,4],[41,3,41,4],[47,3,47,4],[42,3,42,4],[43,3,43,4],[44,3,44,4],[45,3,45,4],[46,3,46,4],[12,0,23,0],[23,1,23,3],[23,4,23,5],[12,1,12,3],[19,1,19,3],[19,4,19,5],[20,1,20,3],[20,4,20,5],[21,1,21,3],[21,4,21,5],[15,4,15,5],[17,1,17,3],[17,4,17,5],[18,1,18,3],[18,4,18,5],[16,1,16,3],[16,4,16,5],[15,1,15,3],[6,0,6,5],[7,1,7,5],[8,1,8,5],[9,1,9,5],[11,4,11,5],[10,0,11,0],[10,2,10,3],[10,4,10,5],[11,2,11,3],[12,4,12,5],[13,1,13,3],[13,4,13,5],[14,1,14,3],[14,4,14,5]]}
[null,"PLAN DE INVERSIÓN DE LOS RECURSOS DE INDEMNIZACIÓN ADMINISTRATIVA",null,null,null,"Código: 410,08,15-94"]
[]
[null,"PROCESO REPARACIÓN INTEGRAL",null,null,null,"Versión: 02"]
[]
[null,"PROCEDIMIENTO TOMA DE DECISIONES CON APOYO",null,null,null,"Fecha: 04/12/2019"]
[null,null,null,null,null,"Paginas: 8 de 14"]
["11. PLAN DE INVERSIÓN DE LOS RECURSOS DE INDEMNIZACIÓN ADMINISTRATIVA"]
["Fecha de diligenciamiento de la información","dd/mm/aaaa"]
["Nombre de la persona con discapacidad",{"$f":"IF(ISBLANK('Informacion preliminar del caso'!B9:D9),\"\",'Informacion preliminar del caso'!B9:D9)","v":""}]
["Nombre del apoyo",{"$f":"IF(OR(ISBLANK('Identificacion Profesional psi'!A21),('Identificacion Profesional psi'!A21=\"Otro\")),\"\",'Identificacion Profesional psi'!A21)","v":""}]
["Datos de contacto ","DEPARTAMENTO DE RESIDENCIA","MUNICIPIO DE RESIDENCIA",null,"NÚMEROS DE TELÉFONO DE  CONTACTO"]
[null,{"$f":"IF(ISBLANK('Informacion preliminar del caso'!B13),\"\",'Informacion preliminar del caso'!B13)","v":""},{"$f":"IF(ISBLANK('Informacion preliminar del caso'!B14),\"\",'Informacion preliminar del caso'!B14)","v":""}]
["1. Por favor describa lo que la persona le ha manifestado que necesita para mejorar su situación actual. Asigne un entre 1 y 5, siendo 1 el de menor necesidad y 5 el de mayor necesidad.","NECESIDAD",null,null,"PUNTUACIÓN"]
[]
[]
[]
[]
[]
[]
[]
[]
[]
[]
[]
["2. Teniendo en cuenta las necesidades identificadas en el cuadro anterior, por favor identifique y justifique las prioridades de inversión de los recursos.","PRIORIDAD","NECESIDAD","Valor aproximado ¿CUÁNTO CUESTA?","¿POR QUÉ SE PRIORIZA?","Asociar a línea de inversión:  Mínimo Vital 2  Formación técnica o profesional para las víctimas o sus hijos 3. Creación o fortalecimiento de empresas productivas o activos productivos 4 Adquisición o mejoramiento de vivienda nueva o usada y  5. Adquisición de inmuebles rurales."]
[]
[]
[]
[]
[]
[]
[]
[]
[]
[]
[]
["3. ¿Con qué capacidades y recursos (físicos , acceso a oferta institucional, redes de apoyo personales e institucionales, económicos y materiales, entre otros) cuenta  la persona con discapacidad para obtener lo que necesita de manera prioritaria y que actividades  debe desarrollar?  ","PRIORIDAD","NECESIDAD","CAPACIDADES Y RECURSOS",null,"ACTIVIDADES QUE DEBE DESARROLLAR PARA DAR RESPUESTA A LAS NECESIDADES IDENTIFICADAS"]
[]
[]
[]
[]
[]
[]
[]
[]
[]
[]
[]
["4. Observaciones"]
[]
[]
[]
[]
[]
[]
["FIRMA Y HUELLA DE LA PcD",null,null,"FIRMA Y HUELLA APOYO DE LA PcD"]
[{"$f":"\"NOMBRE: \"&B9","v":"NOMBRE: "},null,null,{"$f":"\"NOMBRE: \"&B10","v":"NOMBRE: "}]
["C.C.",null,null,"C.C."]
["PROCESO",null,null,"PROCESO"]
[]
[]
[]
[]
[]
["FIRMA DEL PROFESIONAL"]
["NOMBRE:"]
["C.C."]
["PROCESO"]

{"sheet":"Resumen Plan de Inversion","index":13,"n_rows":45,"n_cols":5,"rows_kept":45,"cut":false,"hidden":true,"merged":[[1,1,6,1],[7,1,7,4],[11,1,12,1],[13,1,24,1],[25,2,25,4],[8,2,8,4],[9,2,9,4],[10,2,10,4],[1,4,2,4],[3,4,4,4],[1,2,2,3],[3,2,4,3],[5,2,6,3]]}
[]
[null,null,"PLAN DE INVERSIÓN",null,"Código: 410,08,15-94"]
[]
[null,null,"PROCESO REPARACIÓN INTEGRAL",null,"Versión: 01"]
[]
[null,null,"PROCEDIMIENTO TOMA DE DECISIONES CON APOYO",null,"Fecha: 13/08/2019"]
[null,null,null,null,"Paginas: 10 de 14"]
[null,"PLAN DE INVERSIÓN"]
[null,"Fecha de diligenciamiento de la información",{"$f":"'Plan de inversion'!B8","v":"dd/mm/aaaa"}]
[null,"Nombre de la persona con discapacidad",{"$f":"'Plan de inversion'!B9","v":""}]
[null,"Nombre del apoyo",{"$f":"'Plan de inversion'!B10","v":""}]
[null,"Datos de contacto ","DEPARTAMENTO DE RESIDENCIA","MUNICIPIO DE RESIDENCIA","NÚMEROS DE TELÉFONO DE CONTACTO"]
[null,null,{"$f":"'Plan de inversion'!B12","v":""},{"$f":"'Plan de inversion'!C12","v":""},{"$f":"IF(ISBLANK('Plan de inversion'!E12),\"\",'Plan de inversion'!E12)","v":""}]
[null,"Prioridades de inversión de los recursos.","NECESIDAD","Valor aproximado ¿CUÁNTO CUESTA?","Línea de inversión"]
[null,null,{"$f":"IF(ISBLANK('Plan de inversion'!C26),\"\",'Plan de inversion'!C26)","v":""},{"$f":"IF(ISBLANK('Plan de inversion'!D26),\"\",'Plan de inversion'!D26)","v":""},{"$f":"IF(ISBLANK('Plan de inversion'!F26),\"\",'Plan de inversion'!F26)","v":""}]
[null,null,{"$f":"IF(ISBLANK('Plan de inversion'!C27),\"\",'Plan de inversion'!C27)","v":""},{"$f":"IF(ISBLANK('Plan de inversion'!D27),\"\",'Plan de inversion'!D27)","v":""},{"$f":"IF(ISBLANK('Plan de inversion'!F27),\"\",'Plan de inversion'!F27)","v":""}]
[null,null,{"$f":"IF(ISBLANK('Plan de inversion'!C28),\"\",'Plan de inversion'!C28)","v":""},{"$f":"IF(ISBLANK('Plan de inversion'!D28),\"\",'Plan de inversion'!D28)","v":""},{"$f":"IF(ISBLANK('Plan de inversion'!F28),\"\",'Plan de inversion'!F28)","v":""}]
[null,null,{"$f":"IF(ISBLANK('Plan de inversion'!C29),\"\",'Plan de inversion'!C29)","v":""},{"$f":"IF(ISBLANK('Plan de inversion'!D29),\"\",'Plan de inversion'!D29)","v":""},{"$f":"IF(ISBLANK('Plan de inversion'!F29),\"\",'Plan de inversion'!F29)","v":""}]
[null,null,{"$f":"IF(ISBLANK('Plan de inversion'!C30),\"\",'Plan de inversion'!C30)","v":""},{"$f":"IF(ISBLANK('Plan de inversion'!D30),\"\",'Plan de inversion'!D30)","v":""},{"$f":"IF(ISBLANK('Plan de inversion'!F30),\"\",'Plan de inversion'!F30)","v":""}]
[null,null,{"$f":"IF(ISBLANK('Plan de inversion'!C31),\"\",'Plan de inversion'!C31)","v":""},{"$f":"IF(ISBLANK('Plan de inversion'!D31),\"\",'Plan de inversion'!D31)","v":""},{"$f":"IF(ISBLANK('Plan de inversion'!F31),\"\",'Plan de inversion'!F31)","v":""}]
[null,null,{"$f":"IF(ISBLANK('Plan de inversion'!C32),\"\",'Plan de inversion'!C32)","v":""},{"$f":"IF(ISBLANK('Plan de inversion'!D32),\"\",'Plan de inversion'!D32)","v":""},{"$f":"IF(ISBLANK('Plan de inversion'!F32),\"\",'Plan de inversion'!F32)","v":""}]
[null,null,{"$f":"IF(ISBLANK('Plan de inversion'!C33),\"\",'Plan de inversion'!C33)","v":""},{"$f":"IF(ISBLANK('Plan de inversion'!D33),\"\",'Plan de inversion'!D33)","v":""},{"$f":"IF(ISBLANK('Plan de inversion'!F33),\"\",'Plan de inversion'!F33)","v":""}]
[null,null,{"$f":"IF(ISBLANK('Plan de inversion'!C34),\"\",'Plan de inversion'!C34)","v":""},{"$f":"IF(ISBLANK('Plan de inversion'!D34),\"\",'Plan de inversion'!D34)","v":""},{"$f":"IF(ISBLANK('Plan de inversion'!F34),\"\",'Plan de inversion'!F34)","v":""}]
[null,null,{"$f":"IF(ISBLANK('Plan de inversion'!C35),\"\",'Plan de inversion'!C35)","v":""},{"$f":"IF(ISBLANK('Plan de inversion'!D35),\"\",'Plan de inversion'!D35)","v":""},{"$f":"IF(ISBLANK('Plan de inversion'!F35),\"\",'Plan de inversion'!F35)","v":""}]
[null,null,{"$f":"IF(ISBLANK('Plan de inversion'!C36),\"\",'Plan de inversion'!C36)","v":""},{"$f":"IF(ISBLANK('Plan de inversion'!D36),\"\",'Plan de inversion'!D36)","v":""},{"$f":"IF(ISBLANK('Plan de inversion'!F36),\"\",'Plan de inversion'!F36)","v":""}]
[null,"Observaciones",{"$f":"IF(ISBLANK('Plan de inversion'!B49),\"\",'Plan de inversion'!B49)","v":""}]
[]
[]
[]
[]
[]
[]
[null,"FIRMA Y HUELLA DE LA PcD",null,"FIRMA Y HUELLA APOYO DE LA PcD"]
[null,"NOMBRE:",null,"NOMBRE:"]
[null,"C.C.",null,"C.C."]
[null,"PROCESO",null,"PROCESO"]
[]
[]
[]
[]
[]
[null,"FIRMA DEL PROFESIONAL"]
[null,"NOMBRE:"]
[null,"C.C."]
[null,"PROCESO"]

{"sheet":"INFORME DE SALIDA 1","index":14,"n_rows":74,"n_cols":21,"rows_kept":74,"cut":false,"hidden":true,"merged":[[1,20,2,24],[3,20,4,24],[5,20,5,24],[6,20,6,24],[1,1,6,8],[1,9,2,19],[3,9,4,19],[5,9,6,19],[71,2,71,6],[71,7,71,23],[72,2,72,6],[72,7,72,23],[73,7,73,14],[73,15,73,23],[73,2,73,6],[70,2,70,6],[70,7,70,23],[45,2,45,24],[48,3,48,23],[50,3,50,23],[52,3,52,23],[54,3,55,23],[57,3,57,23],[59,3,59,23],[61,2,61,24],[62,2,67,23],[68,2,68,24],[46,2,46,23],[35,2,35,24],[37,2,37,12],[37,13,37,23],[38,2,38,23],[41,3,42,23],[39,3,39,23],[31,2,31,6],[31,7,31,23],[32,2,32,6],[32,7,32,23],[33,2,33,6],[33,7,33,23],[30,2,30,6],[30,7,30,23],[29,2,29,6],[29,7,29,23],[21,1,22,1],[21,2,22,6],[21,7,22,23],[23,2,23,6],[23,7,23,23],[24,1,25,1],[24,2,25,6],[24,7,25,23],[27,2,27,24],[28,2,28,6],[28,7,28,23],[11,2,12,23],[14,2,14,24],[15,2,15,6],[15,7,15,23],[16,2,16,6],[16,7,16,23],[17,2,17,6],[17,7,17,23],[20,2,20,6],[20,7,20,14],[20,16,20,17],[20,18,20,23],[18,2,18,6],[18,7,18,23],[19,2,19,6],[19,7,19,14],[19,16,19,17],[19,18,19,23],[7,1,7,24],[8,2,8,23],[9,2,9,23],[10,20,10,23],[10,4,10,9],[10,2,10,3],[10,12,10,13],[10,10,10,11],[10,18,10,19],[10,14,10,17]]}
[]
[null,null,null,null,null,null,null,null,null,"INFORME DE VALORACIÓN DE APOYOS",null,null,null,null,null,null,null,null,null,null,"Código: 410,08,15-94"]
[]
[null,null,null,null,null,null,null,null,null,"PROCESO REPARACIÓN INTEGRAL",null,null,null,null,null,null,null,null,null,null,"Versión: 01"]
[]
[null,null,null,null,null,null,null,null,null,"PROCEDIMIENTO TOMA DE DECISIONES CON APOYO",null,null,null,null,null,null,null,null,null,null,"Fecha: 13/08/2019"]
[null,null,null,null,null,null,null,null,null,null,null,null,null,null,null,null,null,null,null,null,"Paginas: 11 de14"]
[null,"INFORME DE VALORACIÓN DE APOYOS"]
[null,null,"PROCEDIMIENTO: TOMA DE DECISIONES CON APOYO EN LA ENTREGA DE LA INDEMNIZACIÓN ADMINISTRATIVA"]
[null,null,"PROCESO: REPARACIÓN INTEGRAL"]
[null,null,"Código: ",null,null,null,null,null,null,null,"Versión: ",null,null,null,"Fecha de Aprobación: ",null,null,null,null,null,"Página: 1 de 4"]
[null,null,"El presente documento presenta los resultados de la valoración de apoyos realizada a las víctimas con discapacidad para asegurar el igual reconocimiento de su capacidad jurídica y facilitar la toma de decisiones frente a la indemnización administrativa. La valoración de apoyos realizada da cumplimiento al artículo 12 de la Convención sobre los Derechos de las Personas con Discapacidad y a la Ley 1346 de 2009, por la cual el Estado Colombiano adopta tal Convención; así como también responde a la orden décimosegunda del Auto 173 de 2014 de la Corte Constitucional y a la Resolución No. xxx de xxx por medio de la cual se adopta el Procedimiento de Toma de Decisiones con Apoyo para la Entrega de la Indemnización Administrativa. "]
[]
[]
[null,1,"Información general de la víctima con discapacidad "]
[null,"1.","Nombres y Apellidos de la PcD",null,null,null,null,{"$f":"+'Informacion preliminar del caso'!B9","v":0}]
[null,"2.","Fecha de nacimiento",null,null,null,null,{"$f":"+'Informacion preliminar del caso'!B10","v":"00:00:00"}]
[null,"3.","Edad ",null,null,null,null,{"$f":"+'Informacion preliminar del caso'!B11","v":""}]
[null,"4.","Lugar actual de residencia (Dirección)",null,null,null,null,{"$f":"+'Informacion preliminar del caso'!B15","v":0}]
[null,"5.","Departamento",null,null,null,null,{"$f":"+'Informacion preliminar del caso'!B13","v":0},null,null,null,null,null,null,null,"6.","Municipio",null,{"$f":"+'Informacion preliminar del caso'!B14","v":0}]
[null,"7.","Documento de identidad (tipo)",null,null,null,null,{"$f":"+'Informacion preliminar del caso'!B18","v":0},null,null,null,null,null,null,null,"8.","Número",null,{"$f":"+'Informacion preliminar del caso'!B19","v":0}]
[null,"9.","Categoría de discapacidad (De acuerdo con el certificado de discapacidad)",null,null,null,null,{"$f":"+'Informacion preliminar del caso'!B20","v":0}]
[]
[null,"10.","¿Otra? ¿Cuál?",null,null,null,null,{"$f":"+'Informacion preliminar del caso'!B21","v":0}]
[null,"11.","¿Por qué requirió la valoración de apoyos?",null,null,null,null,{"$f":"+'Informacion preliminar del caso'!B22","v":0}]
[]
[]
[null,2,"Información general de la valoración de apoyos realizada"]
[null,"12.","Fecha de la valoración",null,null,null,null,{"$f":"'INFORMACION GENERAL PCD'!B8","v":"00:00:00"}]
[null,"13.","Lugar de valoración"]
[null,"14.","Nombre de profesional encargado",null,null,null,null,{"$f":"'Identificacion Profesional psi'!B9","v":0}]
[null,"15.","Documento de identidad",null,null,null,null,{"$f":"'Identificacion Profesional psi'!F9","v":0}]
[null,"16.","Dirección Territorial"]
[null,"17.","Cargo"]
[]
[null,3,"Resultados de la valoración de apoyos "]
[]
[null,null,"Una vez aplicado el Instrumento de Valoración de Apoyos se identificó que ",null,null,null,null,null,null,null,null,null,null,{"$f":"+H16","v":0}]
[null,null,"es una persona con discapacidad que puede tomar y comunicar decisiones frente a la administración de la indemnización de manera comprensible para terceros, por tanto su situación corresponde con un Estado autónomo para la toma de decisiones, lo que supone que:"]
[null,null,null,"Puede recibir los recursos de la indemnización de manera autónoma."]
[]
[null,null,null,"Los apoyos requeridos para la toma de decisiones frente a la administración fueron suministrados al momento de formular el Plan de Inversión. Específicamente, se suministraron y reconocieron los siguientes apoyos: ____________________________________________________________________________________________________________________________________________________________________________________________________________________________________________________________________________________________________________________________________________________________"]
[]
[]
[]
[null,4,"Documentos suscritos"]
[null,null,"En desarrollo de la valoracón de apoyos se suscribieron los siguientes documentos:"]
[]
[null,null,"X","Consentimiento informado para aplicación del IdeVA (VcD)"]
[]
[null,null,null,"Consentimiento informado para aplicación del IdeVA (personas de apoyo)"]
[]
[null,null,null,"Acuerdo para Toma de Decisiones con Apoyo (designación de tercero)"]
[]
[null,null,null,"Acto Jurídico Unilateral de Agencia Oficiosa y Compromiso de Diligencia y Buena Administración de la Indemnización Administrativa otorgada a Víctima con Discapacidad Mental-Psicosocial, Intelectual o Múltiple"]
[]
[]
[null,null,null,"Declaración juramentada de apoyo personal para la toma de decisiones facilitadas de VcD en la entrega de la indemnización administrativa"]
[]
[null,null,"X","Plan de Inversión"]
[]
[null,5,"Observaciones"]
[]
[]
[]
[]
[]
[]
[null,6,"Firmas"]
[]
[null,null,"Nombre de profesional encargado",null,null,null,null,{"$f":"+H31","v":0}]
[null,null,"Documento de de identidad ",null,null,null,null,{"$f":"+H32","v":0}]
[null,null,"Firma"]
[null,null,"Ciudad y fecha",null,null,null,null,{"$f":"+H29","v":"00:00:00"},null,null,null,null,null,null,null,{"$f":"+H30","v":0}]

{"sheet":"INFORME DE SALIDA 2","index":15,"n_rows":77,"n_cols":21,"rows_kept":77,"cut":false,"hidden":true,"merged":[[64,2,64,24],[42,14,42,16],[42,17,42,23],[43,3,43,23],[45,3,45,23],[48,2,48,24],[51,3,51,23],[53,3,53,23],[55,3,55,23],[57,3,58,23],[60,3,60,23],[62,3,62,23],[49,2,49,23],[76,7,76,14],[76,15,76,23],[65,2,70,23],[71,2,71,24],[73,2,73,6],[73,7,73,23],[74,2,74,6],[74,7,74,23],[76,2,76,6],[75,2,75,6],[75,7,75,23],[41,3,41,12],[41,13,41,23],[42,3,42,10],[42,11,42,13],[31,2,31,6],[31,7,31,23],[32,2,32,6],[32,7,32,23],[33,2,33,6],[33,7,33,23],[35,2,35,24],[37,2,37,12],[37,13,37,23],[38,2,38,23],[39,3,39,23],[30,2,30,6],[30,7,30,23],[29,2,29,6],[29,7,29,23],[21,1,22,1],[21,2,22,6],[21,7,22,23],[23,2,23,6],[23,7,23,23],[24,1,25,1],[24,2,25,6],[24,7,25,23],[27,2,27,24],[28,2,28,6],[28,7,28,23],[11,2,12,23],[14,2,14,24],[15,2,15,6],[15,7,15,23],[16,2,16,6],[16,7,16,23],[17,2,17,6],[17,7,17,23],[20,2,20,6],[20,7,20,14],[20,16,20,17],[20,18,20,23],[18,2,18,6],[18,7,18,23],[19,2,19,6],[19,7,19,14],[19,16,19,17],[19,18,19,23],[7,1,7,24],[8,2,8,23],[9,2,9,23],[10,20,10,23],[10,2,10,3],[10,4,10,9],[10,10,10,11],[10,12,10,13],[10,14,10,17],[10,18,10,19],[1,1,6,8],[1,9,2,19],[1,20,2,24],[3,9,4,19],[3,20,4,24],[5,9,6,19],[5,20,5,24],[6,20,6,24]]}
[]
[null,null,null,null,null,null,null,null,null,"INFORME DE VALORACIÓN DE APOYOS",null,null,null,null,null,null,null,null,null,null,"Código: 410,08,15-94"]
[]
[null,null,null,null,null,null,null,null,null,"PROCESO REPARACIÓN INTEGRAL",null,null,null,null,null,null,null,null,null,null,"Versión: 01"]
[]
[null,null,null,null,null,null,null,null,null,"PROCEDIMIENTO TOMA DE DECISIONES CON APOYO",null,null,null,null,null,null,null,null,null,null,"Fecha: 13/08/2019"]
[null,null,null,null,null,null,null,null,null,null,null,null,null,null,null,null,null,null,null,null,"Paginas: 12 de 14"]
[null,"INFORME DE VALORACIÓN DE APOYOS"]
[null,null,"PROCEDIMIENTO: TOMA DE DECISIONES CON APOYO EN LA ENTREGA DE LA INDEMNIZACIÓN ADMINISTRATIVA"]
[null,null,"PROCESO: REPARACIÓN INTEGRAL"]
[null,null,"Código: ",null,null,null,null,null,null,null,"Versión: ",null,null,null,"Fecha de Aprobación: ",null,null,null,null,null,"Página: 1 de 4"]
[null,null,"El presente documento presenta los resultados de la valoración de apoyos realizada a las víctimas con discapacidad para asegurar el igual reconocimiento de su capacidad jurídica y facilitar la toma de decisiones frente a la indemnización administrativa. La valoración de apoyos realizada da cumplimiento al artículo 12 de la Convención sobre los Derechos de las Personas con Discapacidad y a la Ley 1346 de 2009, por la cual el Estado Colombiano adopta tal Convención; así como también responde a la orden décimosegunda del Auto 173 de 2014 de la Corte Constitucional y a la Resolución No. xxx de xxx por medio de la cual se adopta el Procedimiento de Toma de Decisiones con Apoyo para la Entrega de la Indemnización Administrativa. "]
[]
[]
[null,1,"Información general de la víctima con discapacidad "]
[null,"1.","Nombres y Apellidos de la PcD",null,null,null,null,{"$f":"+'Informacion preliminar del caso'!B9","v":0}]
[null,"2.","Fecha de nacimiento",null,null,null,null,{"$f":"+'Informacion preliminar del caso'!B10","v":"00:00:00"}]
[null,"3.","Edad ",null,null,null,null,{"$f":"+'Informacion preliminar del caso'!B11","v":""}]
[null,"4.","Lugar actual de residencia (Dirección)",null,null,null,null,{"$f":"+'Informacion preliminar del caso'!B15","v":0}]
[null,"5.","Departamento",null,null,null,null,{"$f":"+'Informacion preliminar del caso'!B13","v":0},null,null,null,null,null,null,null,"6.","Municipio",null,{"$f":"+'Informacion preliminar del caso'!B14","v":0}]
[null,"7.","Documento de identidad (tipo)",null,null,null,null,{"$f":"+'Informacion preliminar del caso'!B18","v":0},null,null,null,null,null,null,null,"8.","Número",null,{"$f":"+'Informacion preliminar del caso'!B19","v":0}]
[null,"9.","Categoría de discapacidad (De acuerdo con el certificado de discapacidad)",null,null,null,null,{"$f":"+'Informacion preliminar del caso'!B20","v":0}]
[]
[null,"10.","¿Otra? ¿Cuál?",null,null,null,null,{"$f":"+'Informacion preliminar del caso'!B21","v":0}]
[null,"11.","¿Por qué requirió la valoración de apoyos?",null,null,null,null,{"$f":"+'Informacion preliminar del caso'!B22","v":0}]
[]
[]
[null,2,"Información general de la valoración de apoyos realizada"]
[null,"12.","Fecha de la valoración",null,null,null,null,{"$f":"'INFORMACION GENERAL PCD'!B8","v":"00:00:00"}]
[null,"13.","Lugar de valoración"]
[null,"14.","Nombre de profesional encargado",null,null,null,null,{"$f":"'Identificacion Profesional psi'!B9","v":0}]
[null,"15.","Documento de identidad",null,null,null,null,{"$f":"'Identificacion Profesional psi'!F9","v":0}]
[null,"16.","Dirección Territorial"]
[null,"17.","Cargo"]
[]
[null,3,"Resultados de la valoración de apoyos "]
[]
[null,null,"Una vez aplicado el Instrumento de Valoración de Apoyos se identificó que ",null,null,null,null,null,null,null,null,null,null,{"$f":"+H16","v":0}]
[null,null,"es una persona con discapacidad que requiere de apoyos personales para tomar y comunicar sus decisiones frente a la administración de su indemnización, por tanto su situación corresponde con un Estado asistido para la toma de decisiones, lo que supone que:"]
[null,null,null,"Requiere de un apoyo personal para recibir los recursos de la indemnización administrativa a los que tiene derecho."]
[]
[null,null,null,"Se celebró un acuerdo para la Toma de Decisiones con"]
[null,null,null,"identificado/a con cédula de ciudadanía No.",null,null,null,null,null,null,null,null,null,null,"designado/a por",null,null,{"$f":"+H16","v":0}]
[null,null,null,"como su apoyo personal quien manifestó que acepta ser apoyo y que, como tal, entiende que debe brindarle soporte incondicional e irrestricto para tomar y ejecutar sus decisiones frente a los recursos de la indemnización administrativa que va a recibir. "]
[]
[null,null,null,"El apoyo personal le brindó soporte en la formulación del plan de inversión."]
[]
[]
[null,4,"Documentos suscritos"]
[null,null,"En desarrollo de la valoracón de apoyos se suscribieron los siguientes documentos:"]
[]
[null,null,null,"Consentimiento informado para aplicación del IdeVA (VcD)"]
[]
[null,null,"X","Consentimiento informado para aplicación del IdeVA (personas de apoyo)"]
[]
[null,null,"X","Acuerdo para Toma de Decisiones con Apoyo (designación de tercero)"]
[]
[null,null,"X","Acto Jurídico Unilateral de Agencia Oficiosa y Compromiso de Diligencia y Buena Administración de la Indemnización Administrativa otorgada a Víctima con Discapacidad Mental-Psicosocial, Intelectual o Múltiple"]
[]
[]
[null,null,"X","Declaración juramentada de apoyo personal para la toma de decisiones facilitadas de VcD en la entrega de la indemnización administrativa"]
[]
[null,null,"X","Plan de Inversión"]
[]
[null,5,"Observaciones"]
[]
[]
[]
[]
[]
[]
[null,6,"Firmas"]
[]
[null,null,"Nombre de profesional encargado",null,null,null,null,{"$f":"+H31","v":0}]
[null,null,"Documento de de identidad ",null,null,null,null,{"$f":"+H32","v":0}]
[null,null,"Firma"]
[null,null,"Ciudad y fecha",null,null,null,null,{"$f":"+H29","v":"00:00:00"},null,null,null,null,null,null,null,{"$f":"+H30","v":0}]

{"sheet":"INFORME DE SALIDA 3","index":16,"n_rows":83,"n_cols":21,"rows_kept":83,"cut":false,"hidden":true,"merged":[[66,3,66,23],[47,3,47,23],[49,3,49,7],[49,8,49,13],[49,14,49,18],[49,19,49,23],[50,3,51,23],[54,2,54,24],[57,3,57,23],[59,3,59,23],[61,3,61,23],[63,3,64,23],[55,2,55,23],[80,2,80,6],[80,7,80,23],[68,3,68,23],[70,2,70,24],[71,2,76,23],[77,2,77,24],[79,2,79,6],[79,7,79,23],[81,2,81,6],[81,7,81,23],[82,7,82,14],[82,15,82,23],[82,2,82,6],[35,2,35,24],[37,2,37,12],[37,13,37,23],[38,2,38,23],[39,3,39,23],[41,3,41,5],[41,6,41,11],[41,12,41,19],[41,20,41,23],[42,3,42,23],[43,3,43,18],[43,19,43,23],[45,3,45,23],[46,3,46,5],[46,6,46,10],[46,11,46,23],[31,2,31,6],[31,7,31,23],[32,2,32,6],[32,7,32,23],[33,2,33,6],[33,7,33,23],[30,2,30,6],[30,7,30,23],[29,2,29,6],[29,7,29,23],[21,1,22,1],[21,2,22,6],[21,7,22,23],[23,2,23,6],[23,7,23,23],[24,1,25,1],[24,2,25,6],[24,7,25,23],[27,2,27,24],[28,2,28,6],[28,7,28,23],[11,2,12,23],[14,2,14,24],[15,2,15,6],[15,7,15,23],[16,2,16,6],[16,7,16,23],[17,2,17,6],[17,7,17,23],[20,2,20,6],[20,7,20,14],[20,16,20,17],[20,18,20,23],[18,2,18,6],[18,7,18,23],[19,2,19,6],[19,7,19,14],[19,16,19,17],[19,18,19,23],[7,1,7,24],[8,2,8,23],[9,2,9,23],[10,20,10,23],[10,2,10,3],[10,4,10,9],[10,10,10,11],[10,12,10,13],[10,14,10,17],[10,18,10,19],[1,1,6,8],[1,9,2,19],[1,20,2,24],[3,9,4,19],[3,20,4,24],[5,9,6,19],[5,20,5,24],[6,20,6,24]]}
[]
[null,null,null,null,null,null,null,null,null,"INFORME DE VALORACIÓN DE APOYOS",null,null,null,null,null,null,null,null,null,null,"Código: 410,08,15-94"]
[]
[null,null,null,null,null,null,null,null,null,"PROCESO REPARACIÓN INTEGRAL",null,null,null,null,null,null,null,null,null,null,"Versión: 01"]
[]
[null,null,null,null,null,null,null,null,null,"PROCEDIMIENTO TOMA DE DECISIONES CON APOYO",null,null,null,null,null,null,null,null,null,null,"Fecha: 13/08/2019"]
[null,null,null,null,null,null,null,null,null,null,null,null,null,null,null,null,null,null,null,null,"Paginas: 13 de 14"]
[null,"INFORME DE VALORACIÓN DE APOYOS"]
[null,null,"PROCEDIMIENTO: TOMA DE DECISIONES CON APOYO EN LA ENTREGA DE LA INDEMNIZACIÓN ADMINISTRATIVA"]
[null,null,"PROCESO: REPARACIÓN INTEGRAL"]
[null,null,"Código: ",null,null,null,null,null,null,null,"Versión: ",null,null,null,"Fecha de Aprobación: ",null,null,null,null,null,"Página: 1 de 4"]
[null,null,"El presente documento presenta los resultados de la valoración de apoyos realizada a las víctimas con discapacidad para asegurar el igual reconocimiento de su capacidad jurídica y facilitar la toma de decisiones frente a la indemnización administrativa. La valoración de apoyos realizada da cumplimiento al artículo 12 de la Convención sobre los Derechos de las Personas con Discapacidad y a la Ley 1346 de 2009, por la cual el Estado Colombiano adopta tal Convención; así como también responde a la orden décimosegunda del Auto 173 de 2014 de la Corte Constitucional y a la Resolución No. xxx de xxx por medio de la cual se adopta el Procedimiento de Toma de Decisiones con Apoyo para la Entrega de la Indemnización Administrativa. "]
[]
[]
[null,1,"Información general de la víctima con discapacidad "]
[null,"1.","Nombres y Apellidos de la PcD",null,null,null,null,{"$f":"+'Informacion preliminar del caso'!B9","v":0}]
[null,"2.","Fecha de nacimiento",null,null,null,null,{"$f":"+'Informacion preliminar del caso'!B10","v":"00:00:00"}]
[null,"3.","Edad ",null,null,null,null,{"$f":"+'Informacion preliminar del caso'!B11","v":""}]
[null,"4.","Lugar actual de residencia (Dirección)",null,null,null,null,{"$f":"+'Informacion preliminar del caso'!B15","v":0}]
[null,"5.","Departamento",null,null,null,null,{"$f":"+'Informacion preliminar del caso'!B13","v":0},null,null,null,null,null,null,null,"6.","Municipio",null,{"$f":"+'Informacion preliminar del caso'!B14","v":0}]
[null,"7.","Documento de identidad (tipo)",null,null,null,null,{"$f":"+'Informacion preliminar del caso'!B18","v":0},null,null,null,null,null,null,null,"8.","Número",null,{"$f":"+'Informacion preliminar del caso'!B19","v":0}]
[null,"9.","Categoría de discapacidad (De acuerdo con el certificado de discapacidad)",null,null,null,null,{"$f":"+'Informacion preliminar del caso'!B20","v":0}]
[]
[null,"10.","¿Otra? ¿Cuál?",null,null,null,null,{"$f":"+'Informacion preliminar del caso'!B21","v":0}]
[null,"11.","¿Por qué requirió la valoración de apoyos?",null,null,null,null,{"$f":"+'Informacion preliminar del caso'!B22","v":0}]
[]
[]
[null,2,"Información general de la valoración de apoyos realizada"]
[null,"12.","Fecha de la valoración",null,null,null,null,{"$f":"'INFORMACION GENERAL PCD'!B8","v":"00:00:00"}]
[null,"13.","Lugar de valoración"]
[null,"14.","Nombre de profesional encargado",null,null,null,null,{"$f":"'Identificacion Profesional psi'!B9","v":0}]
[null,"15.","Documento de identidad",null,null,null,null,{"$f":"'Identificacion Profesional psi'!F9","v":0}]
[null,"16.","Dirección Territorial"]
[null,"17.","Cargo"]
[]
[null,3,"Resultados de la valoración de apoyos "]
[]
[null,null,"Una vez aplicado el Instrumento de Valoración de Apoyos se identificó que ",null,null,null,null,null,null,null,null,null,null,{"$f":"+H16","v":0}]
[null,null,"es una persona con discapacidad que requiere de apoyos intensos de terceros para la toma de decisiones y el ejercicio de su capacidad jurídica frente a la indemnización, por tanto su situación corresponde con un Estado de toma de decisiones facilitadas, lo que supone que:"]
[null,null,null,"Requiere de un apoyo personal para recibir los recursos de la indemnización administrativa a los que tiene derecho."]
[]
[null,null,null,"Se identificó a",null,null,"Otro",null,null,null,null,null,"identificado/a con  cédula de ciudadanía No."]
[null,null,null,"como la persona que mejor interpreta la voluntad y las preferencias de la víctima con discapacidad y, por tanto, en atención al "]
[null,null,null,"parágrafo primero del artículo 5 de la Resolución xxx de xxxx, se le reconoció como apoyo personal de",null,null,null,null,null,null,null,null,null,null,null,null,null,null,null,{"$f":"+H16","v":0}]
[]
[null,null,null,"El apoyo personal facilita la toma de decisiones frente a la indemnización que recibirá mediante la mejor interpretación de la voluntad y"]
[null,null,null," preferencias de ",null,null,{"$f":"+H16","v":0},null,null,null,null,", basado en su historia de vida, en sus deseos y preferencias anteriores, o en sus"]
[null,null,null," circunstancias personales, y con base en ello se formuló el plan de inversión."]
[]
[null,null,null,"Otro",null,null,null,null,"identificado/a como apoyo personal de",null,null,null,null,null,{"$f":"+H16","v":0},null,null,null,null,"manifestó que se obliga a"]
[null,null,null,"realizar actos de conservación, administración y disposición del dinero recibido por concepto de indemnización administrativa, conforme a la voluntad y las preferencias de esta, plasmadas en el PLAN DE INVERSIÓN."]
[]
[]
[]
[null,4]
[null,null,"En desarrollo de la valoracón de apoyos se suscribieron los siguientes documentos:"]
[]
[null,null,null,"Consentimiento informado para aplicación del IdeVA (VcD)"]
[]
[null,null,"X","Consentimiento informado para aplicación del IdeVA (personas de apoyo)"]
[]
[null,null,"X","Acuerdo para Toma de Decisiones con Apoyo (designación de tercero)"]
[]
[null,null,"X","Acto Jurídico Unilateral de Agencia Oficiosa y Compromiso de Diligencia y Buena Administración de la Indemnización Administrativa otorgada a Víctima con Discapacidad Mental-Psicosocial, Intelectual o Múltiple"]
[]
[]
[null,null,"X","Declaración juramentada de apoyo personal para la toma de decisiones facilitadas de VcD en la entrega de la indemnización administrativa"]
[]
[null,null,"X","Plan de Inversión"]
[]
[null,5,"Observaciones"]
[]
[]
[]
[]
[]
[]
[null,6,"Firmas"]
[]
[null,null,"Nombre de profesional encargado",null,null,null,null,{"$f":"+H31","v":0}]
[null,null,"Documento de de identidad ",null,null,null,null,{"$f":"+H32","v":0}]
[null,null,"Firma"]
[null,null,"Ciudad y fecha",null,null,null,null,{"$f":"+H29","v":"00:00:00"},null,null,null,null,null,null,null,{"$f":"+H30","v":0}]

{"sheet":"INFORME DE SALIDA 4","index":17,"n_rows":76,"n_cols":21,"rows_kept":76,"cut":false,"hidden":true,"merged":[[59,3,59,23],[61,3,61,23],[35,2,35,24],[47,2,47,24],[50,3,50,23],[52,3,52,23],[54,3,54,23],[56,3,57,23],[48,2,48,23],[63,2,63,24],[64,2,69,23],[70,2,70,24],[72,2,72,6],[72,7,72,23],[75,2,75,6],[73,2,73,6],[73,7,73,23],[74,2,74,6],[74,7,74,23],[75,7,75,14],[75,15,75,23],[37,25,45,25],[37,2,37,12],[37,13,37,23],[38,2,38,23],[39,3,39,23],[41,3,41,12],[41,13,41,23],[42,3,42,23],[44,3,45,23],[33,2,33,6],[33,7,33,23],[24,1,25,1],[24,2,25,6],[24,7,25,23],[27,2,27,24],[28,2,28,6],[28,7,28,23],[31,2,31,6],[31,7,31,23],[32,2,32,6],[32,7,32,23],[21,1,22,1],[21,2,22,6],[21,7,22,23],[23,2,23,6],[23,7,23,23],[19,2,19,6],[19,7,19,14],[19,16,19,17],[19,18,19,23],[30,2,30,6],[30,7,30,23],[29,2,29,6],[29,7,29,23],[11,2,12,23],[11,25,12,25],[14,2,14,24],[15,2,15,6],[15,7,15,23],[15,25,34,25],[16,2,16,6],[16,7,16,23],[17,2,17,6],[17,7,17,23],[20,2,20,6],[20,7,20,14],[20,16,20,17],[20,18,20,23],[18,2,18,6],[18,7,18,23],[7,1,7,24],[8,2,8,23],[9,2,9,23],[10,20,10,23],[10,2,10,3],[10,4,10,9],[10,10,10,11],[10,12,10,13],[10,14,10,17],[10,18,10,19],[1,1,6,8],[1,9,2,19],[1,20,2,24],[3,9,4,19],[3,20,4,24],[5,9,6,19],[5,20,5,24],[6,20,6,24]]}
[]
[null,null,null,null,null,null,null,null,null,"INFORME DE VALORACIÓN DE APOYOS",null,null,null,null,null,null,null,null,null,null,"Código: 410,08,15-94"]
[]
[null,null,null,null,null,null,null,null,null,"PROCESO REPARACIÓN INTEGRAL",null,null,null,null,null,null,null,null,null,null,"Versión: 01"]
[]
[null,null,null,null,null,null,null,null,null,"PROCEDIMIENTO TOMA DE DECISIONES CON APOYO",null,null,null,null,null,null,null,null,null,null,"Fecha: 13/08/2019"]
[null,null,null,null,null,null,null,null,null,null,null,null,null,null,null,null,null,null,null,null,"Paginas: 14 de 14"]
[null,"INFORME DE VALORACIÓN DE APOYOS"]
[null,null,"PROCEDIMIENTO: TOMA DE DECISIONES CON APOYO EN LA ENTREGA DE LA INDEMNIZACIÓN ADMINISTRATIVA"]
[null,null,"PROCESO: REPARACIÓN INTEGRAL"]
[null,null,"Código: ",null,null,null,null,null,null,null,"Versión: ",null,null,null,"Fecha de Aprobación: ",null,null,null,null,null,"Página: 1 de 4"]
[null,null,"El presente documento presenta los resultados de la valoración de apoyos realizada a las víctimas con discapacidad para asegurar el igual reconocimiento de su capacidad jurídica y facilitar la toma de decisiones frente a la indemnización administrativa. La valoración de apoyos realizada da cumplimiento al artículo 12 de la Convención sobre los Derechos de las Personas con Discapacidad y a la Ley 1346 de 2009, por la cual el Estado Colombiano adopta tal Convención; así como también responde a la orden décimosegunda del Auto 173 de 2014 de la Corte Constitucional y a la Resolución No. xxx de xxx por medio de la cual se adopta el Procedimiento de Toma de Decisiones con Apoyo para la Entrega de la Indemnización Administrativa. "]
[]
[]
[null,1,"Información general de la víctima con discapacidad "]
[null,"1.","Nombres y Apellidos de la PcD",null,null,null,null,{"$f":"+'Informacion preliminar del caso'!B9","v":0}]
[null,"2.","Fecha de nacimiento",null,null,null,null,{"$f":"+'Informacion preliminar del caso'!B10","v":"00:00:00"}]
[null,"3.","Edad ",null,null,null,null,{"$f":"+'Informacion preliminar del caso'!B11","v":""}]
[null,"4.","Lugar actual de residencia (Dirección)",null,null,null,null,{"$f":"+'Informacion preliminar del caso'!B15","v":0}]
[null,"5.","Departamento",null,null,null,null,{"$f":"+'Informacion preliminar del caso'!B13","v":0},null,null,null,null,null,null,null,"6.","Municipio",null,{"$f":"+'Informacion preliminar del caso'!B14","v":0}]
[null,"7.","Documento de identidad (tipo)",null,null,null,null,{"$f":"+'Informacion preliminar del caso'!B18","v":0},null,null,null,null,null,null,null,"8.","Número",null,{"$f":"+'Informacion preliminar del caso'!B19","v":0}]
[null,"9.","Categoría de discapacidad (De acuerdo con el certificado de discapacidad)",null,null,null,null,{"$f":"+'Informacion preliminar del caso'!B20","v":0}]
[]
[null,"10.","¿Otra? ¿Cuál?",null,null,null,null,{"$f":"+'Informacion preliminar del caso'!B21","v":0}]
[null,"11.","¿Por qué requirió la valoración de apoyos?",null,null,null,null,{"$f":"+'Informacion preliminar del caso'!B22","v":0}]
[]
[]
[null,2,"Información general de la valoración de apoyos realizada"]
[null,"12.","Fecha de la valoración",null,null,null,null,{"$f":"'INFORMACION GENERAL PCD'!B8","v":"00:00:00"}]
[null,"13.","Lugar de valoración"]
[null,"14.","Nombre de profesional encargado",null,null,null,null,{"$f":"'Identificacion Profesional psi'!B9","v":0}]
[null,"15.","Documento de identidad",null,null,null,null,{"$f":"'Identificacion Profesional psi'!F9","v":0}]
[null,"16.","Dirección Territorial"]
[null,"17.","Cargo"]
[]
[null,3,"Resultados de la valoración de apoyos "]
[]
[null,null,"Una vez aplicado el Instrumento de Valoración de Apoyos se identificó que ",null,null,null,null,null,null,null,null,null,null,{"$f":"+H16","v":0}]
[null,null,"es una persona con discapacidad que requiere del apoyo de terceros para tomar y comunicar sus decisiones frente a la administración de la indemnización, sin embargo no se identificaron terceros cercanos a la VcD a quienes ella reconozca como sus apoyos personales, por tanto su situación corresponde con un Estado de Codecisión, lo que supone que:"]
[null,null,null,"Requiere de un apoyo personal para recibir los recursos de la indemnización administrativa a los que tiene derecho."]
[]
[null,null,null,"Dada la inexistencia de apoyos personales que puedan asistir a ",null,null,null,null,null,null,null,null,null,{"$f":"+H16","v":0}]
[null,null,null,"en la toma de decisiones frente a su indemnización, no fue posible formular el Plan de Inversión."]
[]
[null,null,null,"La información del caso  deberá remtirse al Instituto Colombiano de Bienestar Familiar, para que se inicien las acciones pertinentes para su protección y para la garantía de su derecho a la capacidad jurídica."]
[]
[]
[null,4,"Documentos suscritos"]
[null,null,"En desarrollo de la valoracón de apoyos se suscribieron los siguientes documentos:"]
[]
[null,null,null,"Consentimiento informado para aplicación del IdeVA (VcD)"]
[]
[null,null,null,"Consentimiento informado para aplicación del IdeVA (personas de apoyo)"]
[]
[null,null,null,"Acuerdo para Toma de Decisiones con Apoyo (designación de tercero)"]
[]
[null,null,null,"Acto Jurídico Unilateral de Agencia Oficiosa y Compromiso de Diligencia y Buena Administración de la Indemnización Administrativa otorgada a Víctima con Discapacidad Mental-Psicosocial, Intelectual o Múltiple"]
[]
[]
[null,null,null,"Declaración juramentada de apoyo personal para la toma de decisiones facilitadas de VcD en la entrega de la indemnización administrativa"]
[]
[null,null,null,"Plan de Inversión"]
[]
[null,5,"Observaciones"]
[]
[]
[]
[]
[]
[]
[null,6,"Firmas"]
[]
[null,null,"Nombre de profesional encargado",null,null,null,null,{"$f":"+H31","v":0}]
[null,null,"Documento de de identidad ",null,null,null,null,{"$f":"+H32","v":0}]
[null,null,"Firma"]
[null,null,"Ciudad y fecha",null,null,null,null,{"$f":"+H29","v":"00:00:00"},null,null,null,null,null,null,null,{"$f":"+H30","v":0}]

{"sheet":"Identificacion Profesional psi","index":18,"n_rows":29,"n_cols":8,"rows_kept":29,"cut":false,"hidden":false,"merged":[[0,0,5,1],[25,3,25,5],[26,3,26,5],[6,0,6,5],[23,0,23,2],[24,0,24,2],[25,0,25,2],[26,0,26,2],[22,0,22,2],[0,4,1,5],[2,4,3,5],[4,4,4,5],[5,4,5,5],[0,2,1,3],[2,2,3,3],[4,2,5,3],[27,0,27,2],[27,3,27,5],[29,0,57,5],[8,1,8,3],[9,0,9,5],[19,0,19,2],[20,0,20,2],[21,0,21,2],[19,3,19,5],[28,0,28,5],[24,3,24,5],[18,0,18,5],[20,3,20,5],[21,3,21,5],[22,3,22,5],[23,3,23,5]]}
[null,null,"IDENTIFICACIÓN PROFESIONAL PSICOSOCIAL",null,"Código: 410,08,15-94"]
[]
[null,null,"PROCESO REPARACIÓN INTEGRAL",null,"Versión: 02"]
[]
[null,null,"PROCEDIMIENTO TOMA DE DECISIONES CON APOYO",null,"Fecha: 04/12/2019"]
[null,null,null,null,"Paginas: 9 de 14"]
["IDENTIFICACIÓN PROFESIONAL PSICOSOCIAL"]
[]
["Nombre y Apellido del profesional que aplicó el instrumento",null,null,null,"Número de documento del profesional"]
["Luego de la aplicación del instrumento de valoración de apoyos a las personas víctimas con discapacidad intelectual, mental/psicosocial o múltiple y del proceso de organización y clasificación de las respuestas es posible identificar que las siguientes personas son las que más apoyo brindan a la Victima con discapacidad según los siguientes criterios."]
["NOMBRE","PONDERADO CERCANÍA","NOMBRE","PONDERADO CONOCIMIENTO","NOMBRE","PONDERADO PERMANENCIA"]
["Otro",0,"Otro",0,"Otro",0,1]
[null,null,null,null,null,null,2]
[null,null,null,null,null,null,3]
[null,null,null,null,null,null,4]
[null,null,null,null,null,null,5]
[null,null,null,null,null,null,6]
[null,null,null,null,null,null,7]
["Teniendo en cuenta la ponderación total de los resultados totales podemos decir que las personas más idóneas para ser el Apoyo para el uso de los recursos de indemnización a los que tiene derecho la Victima con discapacidad se clasifican de la siguiente manera:",null,null,null,null,null,null,0]
["NOMBRE",null,null,"TOTAL"]
["Otro",null,null,0,null,null,1]
[null,null,null,null,null,null,2]
[null,null,null,null,null,null,3]
[null,null,null,null,null,null,4]
[null,null,null,null,null,null,5]
[null,null,null,null,null,null,6]
[null,null,null,null,null,null,7]
[]
["Descripción observación profesional psicosocial:"]